Workbook

Sheet WorkZone Characteristics
A2: Pavement Rehabilitation User & Business Cost Tool
A3: Developed by Auburn University through support from the National Asphalt Pavement Association (NAPA)
B5: Run the Tool | F5: Roadway Characteristics | K5: Workzone Characteristics | P5: User & Business Impact Cost Summary
B7: Step 1: Reset or Clear the Form | F7: AADT | G7: 7200 | K7: Average Hourly Vehicle Volume | L7: 300 | P7: Road User Costs | S7: Local Business Impact Costs
F8: Truck Volume (%) | G8: 0.05 | K8: Pre-Construction Posted Speed Limit (mph) | L8: 65 | P8: Cost per Personal Vehicle | Q8: ='Reference Tables'!I148 -> 15.8574734 | S8: Revenue Associated with Drivers Who Will…
F9: Roadway Type | G9: Two Lane Road (Arterial) | K9: Current Posted Speed Limit (mph) | L9: 25 | P9: Cost per Freight Vehicle | Q9: ='Reference Tables'!I149 -> 24.6836722 | S9: ...Still Take Trip | T9: ='Vehicle Simulation'!AF3 -> 1.208400011
B10: Step 2: Enter or Select Roadway, Workzone and | F10: Roadway Access Type | G10: No Control | K10: Length of Project (miles) | L10: 2 | P10: Total Road User Cost… | S10: ...Reschedule w/ Construction | T10: ='Vehicle Simulation'!AF4 -> 0
B11: Surrounding Area Characteristics | K11: Average Lane Width (ft) | L11: 12 to 20 Feet | P11: …per Hour | Q11: =((Q8*(L7-(G8*L7)))+(Q9*L7*G8)) -> 4889.635002 | S11: ...Reschedule w/o Construction | T11: ='Vehicle Simulation'!AF5 -> 627.9119873
K12: Does the Workzone have Lighting? | L12: Yes | P12: …per Work Day | Q12: =IF('Reference Tables'!M133 = 0,IF(Q11= 0, 0, Q11),Q11*'Reference Tables'!M133) -> 53785.98502 | S12: ...Go Somewhere Else | T12: ='Vehicle Simulation'!AF6 -> 20462.48633
B13: Step 3: Calculate the Total Costs | K13: Duration of Project (Days) | L13: 8 | P13: …per Project Duration | Q13: =IF(L13 = 0, Q12, Q12*L13) -> 430287.8802 | S13: ...Cancel Trip Entirely | T13: ='Vehicle Simulation'!AF7 -> 0
K14: Average Delay Time (min) | L14: 30 | S14: Total Lost Revenue Cost…
F15: Surrounding Area Characteristics | K15: Month of Project | L15: June | P15: Crash Mitigation Costs | S15: …per Hour | T15: =T13+T12 -> 20462.48633
K16: Day of Project | L16: Tuesday | P16: Most Likely Crash Type | Q16: ='Crash Costs'!I2 -> PDO | S16: …per Work Day | T16: =IF('Reference Tables'!M133 = 0, T15,T15*'Reference Tables'!M133) -> 225087.3496
F17: Census Region of Project | G17: Midwest | K17: Starting Hour of Project | L17: 06:00:00 | P17: Total Crash Mitigation Cost… | S17: …per Project Duration | T17: =IF(L13 = 0, T16, T16*L13) -> 1800698.797
F18: Urban or Rural Development | G18: Urban | K18: Closing Hour of Project | L18: 17:00:00 | P18: …per Hour | Q18: =IF(L13=0,Q20/(1*'Reference Tables'!M133),Q20/(L13*'Reference Tables'!M133)) -> 84.09090909
F19: Personal Vehicle Value of Time | G19: General Personal (Intercity) | K19: Type of Surface Project | L19: Asphalt Concrete | P19: …per Work Day | Q19: =IF(L13 = 0, Q20, Q20/L13) -> 925
F20: Freight Value of Time | G20: General Work/Business | P20: …per Project Duration | Q20: =IF('Crash Costs'!C62 < 2.739, 7400,IF('Crash Costs'!C62<3.214,44900,IF('Crash Costs'!C62 < 3.699, 79000, IF('Crash Costs'!C62 < 4.223, 216000, 4008900)))) -> 7400 | S20: TOTAL IMPACT COSTS...
F21: Average Gasoline Price per Gallon | G21: 3.2 | S21: …per Hour | T21: =Q18+Q11+T15 -> 25436.21224
F22: Average Diesel Price per Gallon | G22: 3.2 | S22: …per Day | T22: =Q19+Q12+T16 -> 279798.3346
F23: Average/Expected Weather Pattern | G23: Clear | S23: …per Project Duration | T23: =Q13+Q20+T17 -> 2238386.677
F24: Surrounding Business | G24: Grocery

Sheet Vehicle Simulation
A1: SIMULATED VEHICLES | L1: BUSINESS IMPACT COEFFICIENTS | Y1: RESULTS
A2: Simulated Vehicle | B2: Business Type | C2: Age | D2: Gender | E2: Household Type | F2: # Vehicles | G2: Income | H2: Daily Commute | I2: Access Time | J2: Amount Spent | L2: Region | M2: Community | N2: Age | O2: Gender | P2: Household Type | Q2: # Vehicles | R2: Income | S2: Daily Commute | T2: Access Time | U2: Amount Spent | V2: Delay | W2: Duration | Y2: Test Value | Z2: Simulated Choice | AA2: Potential Cost (USD) | AB2: Simulated Choice Percentage | AE2: Simulated Monetary Impact
A3: 1 | B3: Grocery | C3: Under 25 | D3: Female | E3: Single Alone | F3: 3 to 5 personal vehs | G3: $75,000 - $99,999 | H3: 20 - 39 min | I3: 21 to 40 min | J3: $1 - $20 | M3: 0.331 | Q3: 1.054 | T3: 0.451 | U3: -1.84 | V3: 1.924 | W3: 0.366 | Y3: 2.286 | Z3: 4 | AA3: 20 | AB3: Still Take Trip | AC3: 0.006 | AE3: Still Take Trip | AF3: 1.208400011
A4: 2 | B4: Grocery | C4: 65 or older | D4: Male | E4: Single Parent w/ Children under 18 | F4: 1 personal veh | G4: $50,000 - $74,999 | H4: 10 -19 min | I4: Less than 5 min | J4: $51 - $100 | M4: 0.331 | N4: 0.599 | P4: 0.582 | Q4: 0.616 | R4: 0.206 | U4: -1.747 | V4: 1.924 | W4: 0.366 | Y4: 2.877 | Z4: 4 | AA4: 100 | AB4: Reschedule w/ Construction | AE4: Reschedule w/ Construction | AF4: 0
A5: 3 | B5: Grocery | C5: 25 to 34 | D5: Male | E5: Couple w/ Children under 18 | F5: 3 to 5 personal vehs | G5: $25,000 - $49,999 | H5: 10 -19 min | I5: 21 to 40 min | J5: $1 - $20 | M5: 0.331 | N5: 0.742 | Q5: 1.054 | T5: 0.451 | U5: -1.84 | V5: 1.924 | W5: 0.366 | Y5: 3.028 | Z5: 4 | AA5: 20 | AB5: Reschedule w/o Construction | AC5: 0.139 | AE5: Reschedule w/o Construction | AF5: 627.9119873
A6: 4 | B6: Grocery | C6: 25 to 34 | D6: Male | E6: Single Alone | F6: 2 personal vehs | G6: $50,000 - $74,999 | H6: 10 -19 min | I6: 11 to 20 min | J6: $51 - $100 | M6: 0.331 | N6: 0.742 | Q6: 0.672 | R6: 0.206 | T6: 0.478 | U6: -1.747 | V6: 1.924 | W6: 0.366 | Y6: 2.972 | Z6: 4 | AA6: 100 | AB6: Go Somewhere Else | AC6: 0.854 | AE6: Go Somewhere Else | AF6: 20462.48633
A7: 5 | B7: Grocery | C7: 65 or older | D7: Male | E7: Couple No Children | F7: 0 personal vehs | G7: $25,000 - $49,999 | H7: 20 - 39 min | I7: 6 to 10 min | J7: More than $200 | M7: 0.331 | N7: 0.599 | P7: 0.227 | T7: 0.471 | U7: -1.697 | V7: 1.924 | W7: 0.366 | Y7: 2.221 | Z7: 4 | AA7: 200 | AB7: Cancel Trip Entirely | AE7: Cancel Trip Entirely | AF7: 0
A8: 6 | B8: Grocery | C8: 35 to 44 | D8: Male | E8: Couple No Children | F8: 2 personal vehs | G8: <$25,000 | H8: 20 - 39 min | I8: Less than 5 min | J8: $21 - $50 | M8: 0.331 | N8: 0.836 | P8: 0.227 | Q8: 0.672 | U8: -1.599 | V8: 1.924 | W8: 0.366 | Y8: 2.757 | Z8: 4 | AA8: 50
A9: 7 | B9: Grocery | C9: Under 25 | D9: Male | E9: Couple w/ Children under 18 | F9: 1 personal veh | G9: <$25,000 | H9: < 5min | I9: More than 1 hour | J9: $51 - $100 | M9: 0.331 | Q9: 0.616 | T9: -1.883 | U9: -1.747 | V9: 1.924 | W9: 0.366 | Y9: -0.393 | Z9: 1 | AA9: 100
A10: 8 | B10: Grocery | C10: Under 25 | D10: Male | E10: Single Alone | F10: 2 personal vehs | G10: <$25,000 | H10: < 5min | I10: 6 to 10 min | J10: $1 - $20 | M10: 0.331 | Q10: 0.672 | T10: 0.471 | U10: -1.84 | V10: 1.924 | W10: 0.366 | Y10: 1.924 | Z10: 3 | AA10: 20
A11: 9 | B11: Grocery | C11: 25 to 34 | D11: Male | E11: Single Alone | F11: 3 to 5 personal vehs | G11: $75,000 - $99,999 | H11: >59 min | I11: 6 to 10 min | J11: $1 - $20 | M11: 0.331 | N11: 0.742 | Q11: 1.054 | T11: 0.471 | U11: -1.84 | V11: 1.924 | W11: 0.366 | Y11: 3.048 | Z11: 4 | AA11: 20
A12: 10 | B12: Grocery | C12: 25 to 34 | D12: Male | E12: Single Alone | F12: 3 to 5 personal vehs | G12: <$25,000 | H12: 20 - 39 min | I12: 6 to 10 min | J12: $1 - $20 | M12: 0.331 | N12: 0.742 | Q12: 1.054 | T12: 0.471 | U12: -1.84 | V12: 1.924 | W12: 0.366 | Y12: 3.048 | Z12: 4 | AA12: 20
A13: 11 | B13: Grocery | C13: 65 or older | D13: Female | E13: Couple No Children | F13: 1 personal veh | G13: <$25,000 | H13: 20 - 39 min | I13: Less than 5 min | J13: $21 - $50 | M13: 0.331 | N13: 0.599 | P13: 0.227 | Q13: 0.616 | U13: -1.599 | V13: 1.924 | W13: 0.366 | Y13: 2.464 | Z13: 4 | AA13: 50
A14: 12 | B14: Grocery | C14: 35 to 44 | D14: Female | E14: Couple No Children | F14: 3 to 5 personal vehs | G14: >= $100,000 | H14: 20 - 39 min | I14: Less than 5 min | J14: $101 - $200 | M14: 0.331 | N14: 0.836 | P14: 0.227 | Q14: 1.054 | U14: -1.868 | V14: 1.924 | W14: 0.366 | Y14: 2.87 | Z14: 4 | AA14: 200
A15: 13 | B15: Grocery | C15: 25 to 34 | D15: Male | E15: Couple w/ Children under 18 | F15: 2 personal vehs | G15: >= $100,000 | H15: 5 - 9 min | I15: 11 to 20 min | J15: $21 - $50 | M15: 0.331 | N15: 0.742 | Q15: 0.672 | T15: 0.478 | U15: -1.599 | V15: 1.924 | W15: 0.366 | Y15: 2.914 | Z15: 4 | AA15: 50
A16: 14 | B16: Grocery | C16: 45 to 59 | D16: Male | E16: Couple w/ Children under 18 | F16: 3 to 5 personal vehs | G16: $50,000 - $74,999 | H16: 5 - 9 min | I16: 6 to 10 min | J16: $51 - $100 | M16: 0.331 | N16: 0.745 | Q16: 1.054 | R16: 0.206 | T16: 0.471 | U16: -1.747 | V16: 1.924 | W16: 0.366 | Y16: 3.35 | Z16: 4 | AA16: 100
A17: 15 | B17: Grocery | C17: 35 to 44 | D17: Female | E17: Single Alone | F17: 1 personal veh | G17: $50,000 - $74,999 | H17: 10 -19 min | I17: 6 to 10 min | J17: $101 - $200 | M17: 0.331 | N17: 0.836 | Q17: 0.616 | R17: 0.206 | T17: 0.471 | U17: -1.868 | V17: 1.924 | W17: 0.366 | Y17: 2.882 | Z17: 4 | AA17: 200
A18: 16 | B18: Grocery | C18: 45 to 59 | D18: Male | E18: Single Alone | F18: 2 personal vehs | G18: <$25,000 | H18: >59 min | I18: 6 to 10 min | J18: $1 - $20 | M18: 0.331 | N18: 0.745 | Q18: 0.672 | T18: 0.471 | U18: -1.84 | V18: 1.924 | W18: 0.366 | Y18: 2.669 | Z18: 4 | AA18: 20
A19: 17 | B19: Grocery | C19: Under 25 | D19: Male | E19: Couple No Children | F19: 1 personal veh | G19: <$25,000 | H19: 10 -19 min | I19: 6 to 10 min | J19: $21 - $50 | M19: 0.331 | P19: 0.227 | Q19: 0.616 | T19: 0.471 | U19: -1.599 | V19: 1.924 | W19: 0.366 | Y19: 2.336 | Z19: 4 | AA19: 50
A20: 18 | B20: Grocery | C20: 65 or older | D20: Female | E20: Couple No Children | F20: 1 personal veh | G20: $75,000 - $99,999 | H20: >59 min | I20: 11 to 20 min | J20: $51 - $100 | M20: 0.331 | N20: 0.599 | P20: 0.227 | Q20: 0.616 | T20: 0.478 | U20: -1.747 | V20: 1.924 | W20: 0.366 | Y20: 2.794 | Z20: 4 | AA20: 100
A21: 19 | B21: Grocery | C21: 60 to 64 | D21: Male | E21: Living w/ Roommates/Friends | F21: 1 personal veh | G21: >= $100,000 | H21: 10 -19 min | I21: Less than 5 min | J21: $21 - $50 | M21: 0.331 | N21: 0.391 | P21: 0.268 | Q21: 0.616 | U21: -1.599 | V21: 1.924 | W21: 0.366 | Y21: 2.297 | Z21: 4 | AA21: 50
A22: 20 | B22: Grocery | C22: 25 to 34 | D22: Male | E22: Single Alone | F22: 3 to 5 personal vehs | G22: >= $100,000 | H22: 20 - 39 min | I22: Less than 5 min | J22: $101 - $200 | M22: 0.331 | N22: 0.742 | Q22: 1.054 | U22: -1.868 | V22: 1.924 | W22: 0.366 | Y22: 2.549 | Z22: 4 | AA22: 200
A23: 21 | B23: Grocery | C23: 60 to 64 | D23: Male | E23: Couple No Children | F23: 3 to 5 personal vehs | G23: $50,000 - $74,999 | H23: 20 - 39 min | I23: 6 to 10 min | J23: $101 - $200 | M23: 0.331 | N23: 0.391 | P23: 0.227 | Q23: 1.054 | R23: 0.206 | T23: 0.471 | U23: -1.868 | V23: 1.924 | W23: 0.366 | Y23: 3.102 | Z23: 4 | AA23: 200
A24: 22 | B24: Grocery | C24: 65 or older | D24: Male | E24: Single Alone | F24: 2 personal vehs | G24: $50,000 - $74,999 | H24: 40 - 59 min | I24: 6 to 10 min | J24: $21 - $50 | M24: 0.331 | N24: 0.599 | Q24: 0.672 | R24: 0.206 | T24: 0.471 | U24: -1.599 | V24: 1.924 | W24: 0.366 | Y24: 2.97 | Z24: 4 | AA24: 50
A25: 23 | B25: Grocery | C25: 45 to 59 | D25: Female | E25: Couple No Children | F25: 2 personal vehs | G25: $75,000 - $99,999 | H25: 10 -19 min | I25: 6 to 10 min | J25: $1 - $20 | M25: 0.331 | N25: 0.745 | P25: 0.227 | Q25: 0.672 | T25: 0.471 | U25: -1.84 | V25: 1.924 | W25: 0.366 | Y25: 2.896 | Z25: 4 | AA25: 20
A26: 24 | B26: Grocery | C26: 65 or older | D26: Male | E26: Single Alone | F26: 2 personal vehs | G26: $25,000 - $49,999 | H26: 10 -19 min | I26: 11 to 20 min | J26: More than $200 | M26: 0.331 | N26: 0.599 | Q26: 0.672 | T26: 0.478 | U26: -1.697 | V26: 1.924 | W26: 0.366 | Y26: 2.673 | Z26: 4 | AA26: 200
A27: 25 | B27: Grocery | C27: Under 25 | D27: Female | E27: Single Alone | F27: 3 to 5 personal vehs | G27: >= $100,000 | H27: 20 - 39 min | I27: 6 to 10 min | J27: $21 - $50 | M27: 0.331 | Q27: 1.054 | T27: 0.471 | U27: -1.599 | V27: 1.924 | W27: 0.366 | Y27: 2.547 | Z27: 4 | AA27: 50
A28: 26 | B28: Grocery | C28: Under 25 | D28: Female | E28: Single Alone | F28: 0 personal vehs | G28: $25,000 - $49,999 | H28: 20 - 39 min | I28: 6 to 10 min | J28: 0 | M28: 0.331 | T28: 0.471 | V28: 1.924 | W28: 0.366 | Y28: 3.092 | Z28: 4 | AA28: 0
A29: 27 | B29: Grocery | C29: Under 25 | D29: Male | E29: Single Alone | F29: 1 personal veh | G29: <$25,000 | H29: 20 - 39 min | I29: 6 to 10 min | J29: $51 - $100 | M29: 0.331 | Q29: 0.616 | T29: 0.471 | U29: -1.747 | V29: 1.924 | W29: 0.366 | Y29: 1.961 | Z29: 3 | AA29: 100
A30: 28 | B30: Grocery | C30: 65 or older | D30: Female | E30: Couple w/ Children under 18 | F30: 1 personal veh | G30: $25,000 - $49,999 | H30: 10 -19 min | I30: Less than 5 min | J30: 0 | M30: 0.331 | N30: 0.599 | Q30: 0.616 | V30: 1.924 | W30: 0.366 | Y30: 3.836 | Z30: 4 | AA30: 0
A31: 29 | B31: Grocery | C31: Under 25 | D31: Male | E31: Couple No Children | F31: 1 personal veh | G31: >= $100,000 | H31: 20 - 39 min | I31: 11 to 20 min | J31: $1 - $20 | M31: 0.331 | P31: 0.227 | Q31: 0.616 | T31: 0.478 | U31: -1.84 | V31: 1.924 | W31: 0.366 | Y31: 2.102 | Z31: 4 | AA31: 20
A32: 30 | B32: Grocery | C32: 65 or older | D32: Female | E32: Single Alone | F32: 0 personal vehs | G32: >= $100,000 | H32: 10 -19 min | I32: 11 to 20 min | J32: $51 - $100 | M32: 0.331 | N32: 0.599 | T32: 0.478 | U32: -1.747 | V32: 1.924 | W32: 0.366 | Y32: 1.951 | Z32: 3 | AA32: 100
A33: 31 | B33: Grocery | C33: 25 to 34 | D33: Male | E33: Couple w/ Children under 18 | F33: 1 personal veh | G33: $25,000 - $49,999 | H33: >59 min | I33: 21 to 40 min | J33: $51 - $100 | M33: 0.331 | N33: 0.742 | Q33: 0.616 | T33: 0.451 | U33: -1.747 | V33: 1.924 | W33: 0.366 | Y33: 2.683 | Z33: 4 | AA33: 100
A34: 32 | B34: Grocery | C34: 45 to 59 | D34: Male | E34: Single Alone | F34: 2 personal vehs | G34: <$25,000 | H34: 5 - 9 min | I34: 11 to 20 min | J34: $101 - $200 | M34: 0.331 | N34: 0.745 | Q34: 0.672 | T34: 0.478 | U34: -1.868 | V34: 1.924 | W34: 0.366 | Y34: 2.648 | Z34: 4 | AA34: 200
A35: 33 | B35: Grocery | C35: 25 to 34 | D35: Male | E35: Couple No Children | F35: 1 personal veh | G35: <$25,000 | H35: < 5min | I35: 6 to 10 min | J35: $51 - $100 | M35: 0.331 | N35: 0.742 | P35: 0.227 | Q35: 0.616 | T35: 0.471 | U35: -1.747 | V35: 1.924 | W35: 0.366 | Y35: 2.93 | Z35: 4 | AA35: 100
A36: 34 | B36: Grocery | C36: 25 to 34 | D36: Female | E36: Single Alone | F36: 3 to 5 personal vehs | G36: <$25,000 | H36: 20 - 39 min | I36: 6 to 10 min | J36: $1 - $20 | M36: 0.331 | N36: 0.742 | Q36: 1.054 | T36: 0.471 | U36: -1.84 | V36: 1.924 | W36: 0.366 | Y36: 3.048 | Z36: 4 | AA36: 20
A37: 35 | B37: Grocery | C37: 45 to 59 | D37: Male | E37: Single Alone | F37: 1 personal veh | G37: $75,000 - $99,999 | H37: 20 - 39 min | I37: Less than 5 min | J37: $21 - $50 | M37: 0.331 | N37: 0.745 | Q37: 0.616 | U37: -1.599 | V37: 1.924 | W37: 0.366 | Y37: 2.383 | Z37: 4 | AA37: 50
A38: 36 | B38: Grocery | C38: Under 25 | D38: Female | E38: Couple w/ Children under 18 | F38: 1 personal veh | G38: <$25,000 | H38: 5 - 9 min | I38: 6 to 10 min | J38: $21 - $50 | M38: 0.331 | Q38: 0.616 | T38: 0.471 | U38: -1.599 | V38: 1.924 | W38: 0.366 | Y38: 2.109 | Z38: 4 | AA38: 50
A39: 37 | B39: Grocery | C39: Under 25 | D39: Female | E39: Single Parent w/ Children under 18 | F39: 1 personal veh | G39: $50,000 - $74,999 | H39: 20 - 39 min | I39: 11 to 20 min | J39: $21 - $50 | M39: 0.331 | P39: 0.582 | Q39: 0.616 | R39: 0.206 | T39: 0.478 | U39: -1.599 | V39: 1.924 | W39: 0.366 | Y39: 2.904 | Z39: 4 | AA39: 50
A40: 38 | B40: Grocery | C40: 45 to 59 | D40: Male | E40: Living w/ Roommates/Friends | F40: 3 to 5 personal vehs | G40: $50,000 - $74,999 | H40: 5 - 9 min | I40: 6 to 10 min | J40: $51 - $100 | M40: 0.331 | N40: 0.745 | P40: 0.268 | Q40: 1.054 | R40: 0.206 | T40: 0.471 | U40: -1.747 | V40: 1.924 | W40: 0.366 | Y40: 3.618 | Z40: 4 | AA40: 100
A41: 39 | B41: Grocery | C41: 45 to 59 | D41: Female | E41: Couple No Children | F41: 3 to 5 personal vehs | G41: >= $100,000 | H41: 20 - 39 min | I41: 6 to 10 min | J41: $1 - $20 | M41: 0.331 | N41: 0.745 | P41: 0.227 | Q41: 1.054 | T41: 0.471 | U41: -1.84 | V41: 1.924 | W41: 0.366 | Y41: 3.278 | Z41: 4 | AA41: 20
A42: 40 | B42: Grocery | C42: 65 or older | D42: Male | E42: Single Alone | F42: 1 personal veh | G42: <$25,000 | H42: 40 - 59 min | I42: 6 to 10 min | J42: More than $200 | M42: 0.331 | N42: 0.599 | Q42: 0.616 | T42: 0.471 | U42: -1.697 | V42: 1.924 | W42: 0.366 | Y42: 2.61 | Z42: 4 | AA42: 200
A43: 41 | B43: Grocery | C43: Under 25 | D43: Female | E43: Single Alone | F43: 2 personal vehs | G43: $50,000 - $74,999 | H43: 40 - 59 min | I43: Less than 5 min | J43: More than $200 | M43: 0.331 | Q43: 0.672 | R43: 0.206 | U43: -1.697 | V43: 1.924 | W43: 0.366 | Y43: 1.802 | Z43: 3 | AA43: 200
A44: 42 | B44: Grocery | C44: 25 to 34 | D44: Male | E44: Single Alone | F44: 3 to 5 personal vehs | G44: <$25,000 | H44: 20 - 39 min | I44: 6 to 10 min | J44: $1 - $20 | M44: 0.331 | N44: 0.742 | Q44: 1.054 | T44: 0.471 | U44: -1.84 | V44: 1.924 | W44: 0.366 | Y44: 3.048 | Z44: 4 | AA44: 20
A45: 43 | B45: Grocery | C45: Under 25 | D45: Female | E45: Couple No Children | F45: 2 personal vehs | G45: <$25,000 | H45: 20 - 39 min | I45: 6 to 10 min | J45: $51 - $100 | M45: 0.331 | P45: 0.227 | Q45: 0.672 | T45: 0.471 | U45: -1.747 | V45: 1.924 | W45: 0.366 | Y45: 2.244 | Z45: 4 | AA45: 100
A46: 44 | B46: Grocery | C46: Under 25 | D46: Male | E46: Single Alone | F46: 2 personal vehs | G46: $50,000 - $74,999 | H46: 10 -19 min | I46: 11 to 20 min | J46: $51 - $100 | M46: 0.331 | Q46: 0.672 | R46: 0.206 | T46: 0.478 | U46: -1.747 | V46: 1.924 | W46: 0.366 | Y46: 2.23 | Z46: 4 | AA46: 100
A47: 45 | B47: Grocery | C47: 65 or older | D47: Female | E47: Single Alone | F47: 0 personal vehs | G47: $25,000 - $49,999 | H47: 20 - 39 min | I47: Less than 5 min | J47: $51 - $100 | M47: 0.331 | N47: 0.599 | U47: -1.747 | V47: 1.924 | W47: 0.366 | Y47: 1.473 | Z47: 3 | AA47: 100
A48: 46 | B48: Grocery | C48: 65 or older | D48: Female | E48: Single Alone | F48: 1 personal veh | G48: $75,000 - $99,999 | H48: 10 -19 min | I48: 6 to 10 min | J48: $51 - $100 | M48: 0.331 | N48: 0.599 | Q48: 0.616 | T48: 0.471 | U48: -1.747 | V48: 1.924 | W48: 0.366 | Y48: 2.56 | Z48: 4 | AA48: 100
A49: 47 | B49: Grocery | C49: 45 to 59 | D49: Female | E49: Couple No Children | F49: 2 personal vehs | G49: >= $100,000 | H49: 10 -19 min | I49: 6 to 10 min | J49: $1 - $20 | M49: 0.331 | N49: 0.745 | P49: 0.227 | Q49: 0.672 | T49: 0.471 | U49: -1.84 | V49: 1.924 | W49: 0.366 | Y49: 2.896 | Z49: 4 | AA49: 20
A50: 48 | B50: Grocery | C50: 45 to 59 | D50: Female | E50: Single Alone | F50: 1 personal veh | G50: <$25,000 | H50: 40 - 59 min | I50: 6 to 10 min | J50: More than $200 | M50: 0.331 | N50: 0.745 | Q50: 0.616 | T50: 0.471 | U50: -1.697 | V50: 1.924 | W50: 0.366 | Y50: 2.756 | Z50: 4 | AA50: 200
A51: 49 | B51: Grocery | C51: 65 or older | D51: Female | E51: Single Alone | F51: 2 personal vehs | G51: $50,000 - $74,999 | H51: 40 - 59 min | I51: Less than 5 min | J51: More than $200 | M51: 0.331 | N51: 0.599 | Q51: 0.672 | R51: 0.206 | U51: -1.697 | V51: 1.924 | W51: 0.366 | Y51: 2.401 | Z51: 4 | AA51: 200
A52: 50 | B52: Grocery | C52: 45 to 59 | D52: Female | E52: Single Alone | F52: 1 personal veh | G52: $25,000 - $49,999 | H52: 20 - 39 min | I52: 11 to 20 min | J52: $51 - $100 | M52: 0.331 | N52: 0.745 | Q52: 0.616 | T52: 0.478 | U52: -1.747 | V52: 1.924 | W52: 0.366 | Y52: 2.713 | Z52: 4 | AA52: 100
A53: 51 | B53: Grocery | C53: 45 to 59 | D53: Female | E53: Couple w/ Children under 18 | F53: 0 personal vehs | G53: $50,000 - $74,999 | H53: 10 -19 min | I53: 11 to 20 min | J53: More than $200 | M53: 0.331 | N53: 0.745 | R53: 0.206 | T53: 0.478 | U53: -1.697 | V53: 1.924 | W53: 0.366 | Y53: 2.353 | Z53: 4 | AA53: 200
A54: 52 | B54: Grocery | C54: Under 25 | D54: Male | E54: Couple w/ Children under 18 | F54: 2 personal vehs | G54: $25,000 - $49,999 | H54: 10 -19 min | I54: 6 to 10 min | J54: $51 - $100 | M54: 0.331 | Q54: 0.672 | T54: 0.471 | U54: -1.747 | V54: 1.924 | W54: 0.366 | Y54: 2.017 | Z54: 3 | AA54: 100
A55: 53 | B55: Grocery | C55: 25 to 34 | D55: Female | E55: Single Alone | F55: 2 personal vehs | G55: <$25,000 | H55: 10 -19 min | I55: 21 to 40 min | J55: $51 - $100 | M55: 0.331 | N55: 0.742 | Q55: 0.672 | T55: 0.451 | U55: -1.747 | V55: 1.924 | W55: 0.366 | Y55: 2.739 | Z55: 4 | AA55: 100
A56: 54 | B56: Grocery | C56: 45 to 59 | D56: Male | E56: Couple w/ Children under 18 | F56: 2 personal vehs | G56: $25,000 - $49,999 | H56: 20 - 39 min | I56: Less than 5 min | J56: $1 - $20 | M56: 0.331 | N56: 0.745 | Q56: 0.672 | U56: -1.84 | V56: 1.924 | W56: 0.366 | Y56: 2.198 | Z56: 4 | AA56: 20
A57: 55 | B57: Grocery | C57: 25 to 34 | D57: Male | E57: Single Alone | F57: 1 personal veh | G57: $25,000 - $49,999 | H57: < 5min | I57: Less than 5 min | J57: $51 - $100 | M57: 0.331 | N57: 0.742 | Q57: 0.616 | U57: -1.747 | V57: 1.924 | W57: 0.366 | Y57: 2.232 | Z57: 4 | AA57: 100
A58: 56 | B58: Grocery | C58: Under 25 | D58: Female | E58: Single Parent w/ Children under 18 | F58: 0 personal vehs | G58: $50,000 - $74,999 | H58: 20 - 39 min | I58: Less than 5 min | J58: $21 - $50 | M58: 0.331 | P58: 0.582 | R58: 0.206 | U58: -1.599 | V58: 1.924 | W58: 0.366 | Y58: 1.81 | Z58: 3 | AA58: 50
A59: 57 | B59: Grocery | C59: 65 or older | D59: Female | E59: Single Alone | F59: 2 personal vehs | G59: $50,000 - $74,999 | H59: 20 - 39 min | I59: Less than 5 min | J59: $101 - $200 | M59: 0.331 | N59: 0.599 | Q59: 0.672 | R59: 0.206 | U59: -1.868 | V59: 1.924 | W59: 0.366 | Y59: 2.23 | Z59: 4 | AA59: 200
A60: 58 | B60: Grocery | C60: 25 to 34 | D60: Female | E60: Single Alone | F60: 1 personal veh | G60: $25,000 - $49,999 | H60: 20 - 39 min | I60: 11 to 20 min | J60: $1 - $20 | M60: 0.331 | N60: 0.742 | Q60: 0.616 | T60: 0.478 | U60: -1.84 | V60: 1.924 | W60: 0.366 | Y60: 2.617 | Z60: 4 | AA60: 20
A61: 59 | B61: Grocery | C61: Under 25 | D61: Male | E61: Single Alone | F61: 1 personal veh | G61: <$25,000 | H61: 20 - 39 min | I61: 6 to 10 min | J61: $51 - $100 | M61: 0.331 | Q61: 0.616 | T61: 0.471 | U61: -1.747 | V61: 1.924 | W61: 0.366 | Y61: 1.961 | Z61: 3 | AA61: 100
A62: 60 | B62: Grocery | C62: Under 25 | D62: Male | E62: Single Alone | F62: 1 personal veh | G62: $50,000 - $74,999 | H62: 20 - 39 min | I62: 6 to 10 min | J62: $21 - $50 | M62: 0.331 | Q62: 0.616 | R62: 0.206 | T62: 0.471 | U62: -1.599 | V62: 1.924 | W62: 0.366 | Y62: 2.315 | Z62: 4 | AA62: 50
A63: 61 | B63: Grocery | C63: Under 25 | D63: Female | E63: Couple w/ Children under 18 | F63: 1 personal veh | G63: <$25,000 | H63: >59 min | I63: 11 to 20 min | J63: $21 - $50 | M63: 0.331 | Q63: 0.616 | T63: 0.478 | U63: -1.599 | V63: 1.924 | W63: 0.366 | Y63: 2.116 | Z63: 4 | AA63: 50
A64: 62 | B64: Grocery | C64: 45 to 59 | D64: Male | E64: Couple w/ Children under 18 | F64: 3 to 5 personal vehs | G64: $75,000 - $99,999 | H64: < 5min | I64: 6 to 10 min | J64: $51 - $100 | M64: 0.331 | N64: 0.745 | Q64: 1.054 | T64: 0.471 | U64: -1.747 | V64: 1.924 | W64: 0.366 | Y64: 3.144 | Z64: 4 | AA64: 100
A65: 63 | B65: Grocery | C65: 35 to 44 | D65: Female | E65: Single Alone | F65: 1 personal veh | G65: $50,000 - $74,999 | H65: 10 -19 min | I65: Less than 5 min | J65: More than $200 | M65: 0.331 | N65: 0.836 | Q65: 0.616 | R65: 0.206 | U65: -1.697 | V65: 1.924 | W65: 0.366 | Y65: 2.582 | Z65: 4 | AA65: 200
A66: 64 | B66: Grocery | C66: 45 to 59 | D66: Male | E66: Single Alone | F66: 2 personal vehs | G66: <$25,000 | H66: 5 - 9 min | I66: 11 to 20 min | J66: $101 - $200 | M66: 0.331 | N66: 0.745 | Q66: 0.672 | T66: 0.478 | U66: -1.868 | V66: 1.924 | W66: 0.366 | Y66: 2.648 | Z66: 4 | AA66: 200
A67: 65 | B67: Grocery | C67: 25 to 34 | D67: Male | E67: Couple No Children | F67: 1 personal veh | G67: <$25,000 | H67: < 5min | I67: 6 to 10 min | J67: $51 - $100 | M67: 0.331 | N67: 0.742 | P67: 0.227 | Q67: 0.616 | T67: 0.471 | U67: -1.747 | V67: 1.924 | W67: 0.366 | Y67: 2.93 | Z67: 4 | AA67: 100
A68: 66 | B68: Grocery | C68: Under 25 | D68: Male | E68: Couple w/ Children under 18 | F68: 2 personal vehs | G68: >= $100,000 | H68: 10 -19 min | I68: 6 to 10 min | J68: $101 - $200 | M68: 0.331 | Q68: 0.672 | T68: 0.471 | U68: -1.868 | V68: 1.924 | W68: 0.366 | Y68: 1.896 | Z68: 3 | AA68: 200
A69: 67 | B69: Grocery | C69: 35 to 44 | D69: Male | E69: Single Alone | F69: 0 personal vehs | G69: $50,000 - $74,999 | H69: 20 - 39 min | I69: Less than 5 min | J69: $21 - $50 | M69: 0.331 | N69: 0.836 | R69: 0.206 | U69: -1.599 | V69: 1.924 | W69: 0.366 | Y69: 2.064 | Z69: 4 | AA69: 50
A70: 68 | B70: Grocery | C70: 65 or older | D70: Female | E70: Couple w/ Children under 18 | F70: 1 personal veh | G70: <$25,000 | H70: >59 min | I70: Less than 5 min | J70: 0 | M70: 0.331 | N70: 0.599 | Q70: 0.616 | V70: 1.924 | W70: 0.366 | Y70: 3.836 | Z70: 4 | AA70: 0
A71: 69 | B71: Grocery | C71: 45 to 59 | D71: Female | E71: Single Alone | F71: 2 personal vehs | G71: <$25,000 | H71: 10 -19 min | I71: Less than 5 min | J71: $51 - $100 | M71: 0.331 | N71: 0.745 | Q71: 0.672 | U71: -1.747 | V71: 1.924 | W71: 0.366 | Y71: 2.291 | Z71: 4 | AA71: 100
A72: 70 | B72: Grocery | C72: 60 to 64 | D72: Male | E72: Living w/ Roommates/Friends | F72: 3 to 5 personal vehs | G72: $50,000 - $74,999 | H72: 5 - 9 min | I72: 6 to 10 min | J72: $51 - $100 | M72: 0.331 | N72: 0.391 | P72: 0.268 | Q72: 1.054 | R72: 0.206 | T72: 0.471 | U72: -1.747 | V72: 1.924 | W72: 0.366 | Y72: 3.264 | Z72: 4 | AA72: 100
A73: 71 | B73: Grocery | C73: 35 to 44 | D73: Female | E73: Single Alone | F73: 2 personal vehs | G73: $50,000 - $74,999 | H73: 20 - 39 min | I73: 6 to 10 min | J73: More than $200 | M73: 0.331 | N73: 0.836 | Q73: 0.672 | R73: 0.206 | T73: 0.471 | U73: -1.697 | V73: 1.924 | W73: 0.366 | Y73: 3.109 | Z73: 4 | AA73: 200
A74: 72 | B74: Grocery | C74: Under 25 | D74: Female | E74: Couple No Children | F74: 2 personal vehs | G74: $25,000 - $49,999 | H74: 10 -19 min | I74: 11 to 20 min | J74: $21 - $50 | M74: 0.331 | P74: 0.227 | Q74: 0.672 | T74: 0.478 | U74: -1.599 | V74: 1.924 | W74: 0.366 | Y74: 2.399 | Z74: 4 | AA74: 50
A75: 73 | B75: Grocery | C75: 45 to 59 | D75: Male | E75: Couple No Children | F75: 1 personal veh | G75: <$25,000 | H75: 10 -19 min | I75: 6 to 10 min | J75: $21 - $50 | M75: 0.331 | N75: 0.745 | P75: 0.227 | Q75: 0.616 | T75: 0.471 | U75: -1.599 | V75: 1.924 | W75: 0.366 | Y75: 3.081 | Z75: 4 | AA75: 50
A76: 74 | B76: Grocery | C76: 45 to 59 | D76: Female | E76: Couple No Children | F76: 1 personal veh | G76: $50,000 - $74,999 | H76: 5 - 9 min | I76: Less than 5 min | J76: $51 - $100 | M76: 0.331 | N76: 0.745 | P76: 0.227 | Q76: 0.616 | R76: 0.206 | U76: -1.747 | V76: 1.924 | W76: 0.366 | Y76: 2.668 | Z76: 4 | AA76: 100
A77: 75 | B77: Grocery | C77: 45 to 59 | D77: Male | E77: Single Alone | F77: 1 personal veh | G77: $75,000 - $99,999 | H77: 10 -19 min | I77: 11 to 20 min | J77: $1 - $20 | M77: 0.331 | N77: 0.745 | Q77: 0.616 | T77: 0.478 | U77: -1.84 | V77: 1.924 | W77: 0.366 | Y77: 2.62 | Z77: 4 | AA77: 20
A78: 76 | B78: Grocery | C78: Under 25 | D78: Male | E78: Single Alone | F78: 2 personal vehs | G78: $50,000 - $74,999 | H78: 10 -19 min | I78: 11 to 20 min | J78: $51 - $100 | M78: 0.331 | Q78: 0.672 | R78: 0.206 | T78: 0.478 | U78: -1.747 | V78: 1.924 | W78: 0.366 | Y78: 2.23 | Z78: 4 | AA78: 100
A79: 77 | B79: Grocery | C79: 35 to 44 | D79: Female | E79: Single Alone | F79: 2 personal vehs | G79: <$25,000 | H79: 10 -19 min | I79: 11 to 20 min | J79: $21 - $50 | M79: 0.331 | N79: 0.836 | Q79: 0.672 | T79: 0.478 | U79: -1.599 | V79: 1.924 | W79: 0.366 | Y79: 3.008 | Z79: 4 | AA79: 50
A80: 78 | B80: Grocery | C80: 45 to 59 | D80: Male | E80: Couple w/ Children under 18 | F80: 2 personal vehs | G80: $25,000 - $49,999 | H80: >59 min | I80: 6 to 10 min | J80: $51 - $100 | M80: 0.331 | N80: 0.745 | Q80: 0.672 | T80: 0.471 | U80: -1.747 | V80: 1.924 | W80: 0.366 | Y80: 2.762 | Z80: 4 | AA80: 100
A81: 79 | B81: Grocery | C81: 45 to 59 | D81: Female | E81: Couple No Children | F81: 2 personal vehs | G81: $75,000 - $99,999 | H81: 10 -19 min | I81: 6 to 10 min | J81: $1 - $20 | M81: 0.331 | N81: 0.745 | P81: 0.227 | Q81: 0.672 | T81: 0.471 | U81: -1.84 | V81: 1.924 | W81: 0.366 | Y81: 2.896 | Z81: 4 | AA81: 20
A82: 80 | B82: Grocery | C82: Under 25 | D82: Male | E82: Couple No Children | F82: 3 to 5 personal vehs | G82: $50,000 - $74,999 | H82: 10 -19 min | I82: Less than 5 min | J82: $51 - $100 | M82: 0.331 | P82: 0.227 | Q82: 1.054 | R82: 0.206 | U82: -1.747 | V82: 1.924 | W82: 0.366 | Y82: 2.361 | Z82: 4 | AA82: 100
A83: 81 | B83: Grocery | C83: 25 to 34 | D83: Male | E83: Couple No Children | F83: 1 personal veh | G83: <$25,000 | H83: 10 -19 min | I83: 11 to 20 min | J83: $51 - $100 | M83: 0.331 | N83: 0.742 | P83: 0.227 | Q83: 0.616 | T83: 0.478 | U83: -1.747 | V83: 1.924 | W83: 0.366 | Y83: 2.937 | Z83: 4 | AA83: 100
A84: 82 | B84: Grocery | C84: 25 to 34 | D84: Male | E84: Couple w/ Children under 18 | F84: 3 to 5 personal vehs | G84: <$25,000 | H84: 10 -19 min | I84: 6 to 10 min | J84: $1 - $20 | M84: 0.331 | N84: 0.742 | Q84: 1.054 | T84: 0.471 | U84: -1.84 | V84: 1.924 | W84: 0.366 | Y84: 3.048 | Z84: 4 | AA84: 20
A85: 83 | B85: Grocery | C85: Under 25 | D85: Male | E85: Single Alone | F85: 2 personal vehs | G85: <$25,000 | H85: 20 - 39 min | I85: 6 to 10 min | J85: $51 - $100 | M85: 0.331 | Q85: 0.672 | T85: 0.471 | U85: -1.747 | V85: 1.924 | W85: 0.366 | Y85: 2.017 | Z85: 3 | AA85: 100
A86: 84 | B86: Grocery | C86: Under 25 | D86: Male | E86: Living w/ Roommates/Friends | F86: 2 personal vehs | G86: $50,000 - $74,999 | H86: 10 -19 min | I86: 11 to 20 min | J86: $51 - $100 | M86: 0.331 | P86: 0.268 | Q86: 0.672 | R86: 0.206 | T86: 0.478 | U86: -1.747 | V86: 1.924 | W86: 0.366 | Y86: 2.498 | Z86: 4 | AA86: 100
A87: 85 | B87: Grocery | C87: 45 to 59 | D87: Male | E87: Couple No Children | F87: 3 to 5 personal vehs | G87: $25,000 - $49,999 | H87: 20 - 39 min | I87: 6 to 10 min | J87: $101 - $200 | M87: 0.331 | N87: 0.745 | P87: 0.227 | Q87: 1.054 | T87: 0.471 | U87: -1.868 | V87: 1.924 | W87: 0.366 | Y87: 3.25 | Z87: 4 | AA87: 200
A88: 86 | B88: Grocery | C88: 45 to 59 | D88: Male | E88: Couple w/ Children under 18 | F88: 2 personal vehs | G88: $25,000 - $49,999 | H88: 20 - 39 min | I88: Less than 5 min | J88: $1 - $20 | M88: 0.331 | N88: 0.745 | Q88: 0.672 | U88: -1.84 | V88: 1.924 | W88: 0.366 | Y88: 2.198 | Z88: 4 | AA88: 20
A89: 87 | B89: Grocery | C89: Under 25 | D89: Male | E89: Couple w/ Children under 18 | F89: 3 to 5 personal vehs | G89: <$25,000 | H89: 20 - 39 min | I89: 11 to 20 min | J89: $51 - $100 | M89: 0.331 | Q89: 1.054 | T89: 0.478 | U89: -1.747 | V89: 1.924 | W89: 0.366 | Y89: 2.406 | Z89: 4 | AA89: 100
A90: 88 | B90: Grocery | C90: 60 to 64 | D90: Male | E90: Single Alone | F90: 2 personal vehs | G90: <$25,000 | H90: 5 - 9 min | I90: 11 to 20 min | J90: $101 - $200 | M90: 0.331 | N90: 0.391 | Q90: 0.672 | T90: 0.478 | U90: -1.868 | V90: 1.924 | W90: 0.366 | Y90: 2.294 | Z90: 4 | AA90: 200
A91: 89 | B91: Grocery | C91: Under 25 | D91: Female | E91: Single Alone | F91: 3 to 5 personal vehs | G91: >= $100,000 | H91: 20 - 39 min | I91: 6 to 10 min | J91: $21 - $50 | M91: 0.331 | Q91: 1.054 | T91: 0.471 | U91: -1.599 | V91: 1.924 | W91: 0.366 | Y91: 2.547 | Z91: 4 | AA91: 50
A92: 90 | B92: Grocery | C92: 35 to 44 | D92: Female | E92: Single Alone | F92: 1 personal veh | G92: $50,000 - $74,999 | H92: 40 - 59 min | I92: 11 to 20 min | J92: $21 - $50 | M92: 0.331 | N92: 0.836 | Q92: 0.616 | R92: 0.206 | T92: 0.478 | U92: -1.599 | V92: 1.924 | W92: 0.366 | Y92: 3.158 | Z92: 4 | AA92: 50
A93: 91 | B93: Grocery | C93: 65 or older | D93: Male | E93: Single Alone | F93: 0 personal vehs | G93: >= $100,000 | H93: 20 - 39 min | I93: Less than 5 min | J93: $21 - $50 | M93: 0.331 | N93: 0.599 | U93: -1.599 | V93: 1.924 | W93: 0.366 | Y93: 1.621 | Z93: 3 | AA93: 50
A94: 92 | B94: Grocery | C94: Under 25 | D94: Male | E94: Single Alone | F94: 1 personal veh | G94: $50,000 - $74,999 | H94: 20 - 39 min | I94: 6 to 10 min | J94: $21 - $50 | M94: 0.331 | Q94: 0.616 | R94: 0.206 | T94: 0.471 | U94: -1.599 | V94: 1.924 | W94: 0.366 | Y94: 2.315 | Z94: 4 | AA94: 50
A95: 93 | B95: Grocery | C95: 65 or older | D95: Male | E95: Single Alone | F95: 0 personal vehs | G95: $50,000 - $74,999 | H95: 20 - 39 min | I95: 6 to 10 min | J95: $101 - $200 | M95: 0.331 | N95: 0.599 | R95: 0.206 | T95: 0.471 | U95: -1.868 | V95: 1.924 | W95: 0.366 | Y95: 2.029 | Z95: 4 | AA95: 200
A96: 94 | B96: Grocery | C96: Under 25 | D96: Female | E96: Single Alone | F96: 1 personal veh | G96: $25,000 - $49,999 | H96: 20 - 39 min | I96: Less than 5 min | J96: $101 - $200 | M96: 0.331 | Q96: 0.616 | U96: -1.868 | V96: 1.924 | W96: 0.366 | Y96: 1.369 | Z96: 3 | AA96: 200
A97: 95 | B97: Grocery | C97: 25 to 34 | D97: Male | E97: Couple w/ Children under 18 | F97: 1 personal veh | G97: $25,000 - $49,999 | H97: 5 - 9 min | I97: Less than 5 min | J97: $101 - $200 | M97: 0.331 | N97: 0.742 | Q97: 0.616 | U97: -1.868 | V97: 1.924 | W97: 0.366 | Y97: 2.111 | Z97: 4 | AA97: 200
A98: 96 | B98: Grocery | C98: 25 to 34 | D98: Female | E98: Couple w/ Children under 18 | F98: 1 personal veh | G98: >= $100,000 | H98: 20 - 39 min | I98: 6 to 10 min | J98: $51 - $100 | M98: 0.331 | N98: 0.742 | Q98: 0.616 | T98: 0.471 | U98: -1.747 | V98: 1.924 | W98: 0.366 | Y98: 2.703 | Z98: 4 | AA98: 100
A99: 97 | B99: Grocery | C99: 45 to 59 | D99: Male | E99: Couple w/ Children under 18 | F99: 2 personal vehs | G99: $25,000 - $49,999 | H99: 10 -19 min | I99: 11 to 20 min | J99: $101 - $200 | M99: 0.331 | N99: 0.745 | Q99: 0.672 | T99: 0.478 | U99: -1.868 | V99: 1.924 | W99: 0.366 | Y99: 2.648 | Z99: 4 | AA99: 200
A100: 98 | B100: Grocery | C100: Under 25 | D100: Female | E100: Single Alone | F100: 2 personal vehs | G100: <$25,000 | H100: 20 - 39 min | I100: 6 to 10 min | J100: More than $200 | M100: 0.331 | Q100: 0.672 | T100: 0.471 | U100: -1.697 | V100: 1.924 | W100: 0.366 | Y100: 2.067 | Z100: 4 | AA100: 200
A101: 99 | B101: Grocery | C101: 65 or older | D101: Female | E101: Single Alone | F101: 1 personal veh | G101: >= $100,000 | H101: 20 - 39 min | I101: 6 to 10 min | J101: $51 - $100 | M101: 0.331 | N101: 0.599 | Q101: 0.616 | T101: 0.471 | U101: -1.747 | V101: 1.924 | W101: 0.366 | Y101: 2.56 | Z101: 4 | AA101: 100
A102: 100 | B102: Grocery | C102: 45 to 59 | D102: Female | E102: Couple No Children | F102: 3 to 5 personal vehs | G102: >= $100,000 | H102: 20 - 39 min | I102: Less than 5 min | J102: $101 - $200 | M102: 0.331 | N102: 0.745 | P102: 0.227 | Q102: 1.054 | U102: -1.868 | V102: 1.924 | W102: 0.366 | Y102: 2.779 | Z102: 4 | AA102: 200
A103: 101 | B103: Grocery | C103: Under 25 | D103: Female | E103: Single Parent w/ Children under 18 | F103: 1 personal veh | G103: $50,000 - $74,999 | H103: 40 - 59 min | I103: 11 to 20 min | J103: $21 - $50 | M103: 0.331 | P103: 0.582 | Q103: 0.616 | R103: 0.206 | T103: 0.478 | U103: -1.599 | V103: 1.924 | W103: 0.366 | Y103: 2.904 | Z103: 4 | AA103: 50
A104: 102 | B104: Grocery | C104: 35 to 44 | D104: Male | E104: Single Parent w/ Children under 18 | F104: 2 personal vehs | G104: $25,000 - $49,999 | H104: 40 - 59 min | I104: Less than 5 min | J104: $21 - $50 | M104: 0.331 | N104: 0.836 | P104: 0.582 | Q104: 0.672 | U104: -1.599 | V104: 1.924 | W104: 0.366 | Y104: 3.112 | Z104: 4 | AA104: 50
A105: 103 | B105: Grocery | C105: 25 to 34 | D105: Male | E105: Single Alone | F105: 2 personal vehs | G105: $50,000 - $74,999 | H105: 10 -19 min | I105: 6 to 10 min | J105: $101 - $200 | M105: 0.331 | N105: 0.742 | Q105: 0.672 | R105: 0.206 | T105: 0.471 | U105: -1.868 | V105: 1.924 | W105: 0.366 | Y105: 2.844 | Z105: 4 | AA105: 200
A106: 104 | B106: Grocery | C106: 45 to 59 | D106: Female | E106: Couple w/ Children under 18 | F106: 1 personal veh | G106: $75,000 - $99,999 | H106: 20 - 39 min | I106: Less than 5 min | J106: $51 - $100 | M106: 0.331 | N106: 0.745 | Q106: 0.616 | U106: -1.747 | V106: 1.924 | W106: 0.366 | Y106: 2.235 | Z106: 4 | AA106: 100
A107: 105 | B107: Grocery | C107: 65 or older | D107: Female | E107: Couple w/ Children under 18 | F107: 2 personal vehs | G107: $25,000 - $49,999 | H107: 20 - 39 min | I107: 11 to 20 min | J107: $51 - $100 | M107: 0.331 | N107: 0.599 | Q107: 0.672 | T107: 0.478 | U107: -1.747 | V107: 1.924 | W107: 0.366 | Y107: 2.623 | Z107: 4 | AA107: 100
A108: 106 | B108: Grocery | C108: 25 to 34 | D108: Male | E108: Single Alone | F108: 3 to 5 personal vehs | G108: <$25,000 | H108: 20 - 39 min | I108: 6 to 10 min | J108: $1 - $20 | M108: 0.331 | N108: 0.742 | Q108: 1.054 | T108: 0.471 | U108: -1.84 | V108: 1.924 | W108: 0.366 | Y108: 3.048 | Z108: 4 | AA108: 20
A109: 107 | B109: Grocery | C109: 25 to 34 | D109: Male | E109: Couple w/ Children under 18 | F109: 3 to 5 personal vehs | G109: $50,000 - $74,999 | H109: 5 - 9 min | I109: 11 to 20 min | J109: $101 - $200 | M109: 0.331 | N109: 0.742 | Q109: 1.054 | R109: 0.206 | T109: 0.478 | U109: -1.868 | V109: 1.924 | W109: 0.366 | Y109: 3.233 | Z109: 4 | AA109: 200
A110: 108 | B110: Grocery | C110: Under 25 | D110: Male | E110: Couple No Children | F110: 2 personal vehs | G110: $75,000 - $99,999 | H110: 20 - 39 min | I110: 11 to 20 min | J110: $51 - $100 | M110: 0.331 | P110: 0.227 | Q110: 0.672 | T110: 0.478 | U110: -1.747 | V110: 1.924 | W110: 0.366 | Y110: 2.251 | Z110: 4 | AA110: 100
A111: 109 | B111: Grocery | C111: Under 25 | D111: Male | E111: Couple No Children | F111: 1 personal veh | G111: $50,000 - $74,999 | H111: 20 - 39 min | I111: 6 to 10 min | J111: $101 - $200 | M111: 0.331 | P111: 0.227 | Q111: 0.616 | R111: 0.206 | T111: 0.471 | U111: -1.868 | V111: 1.924 | W111: 0.366 | Y111: 2.273 | Z111: 4 | AA111: 200
A112: 110 | B112: Grocery | C112: 35 to 44 | D112: Male | E112: Couple No Children | F112: 2 personal vehs | G112: $25,000 - $49,999 | H112: 20 - 39 min | I112: Less than 5 min | J112: $21 - $50 | M112: 0.331 | N112: 0.836 | P112: 0.227 | Q112: 0.672 | U112: -1.599 | V112: 1.924 | W112: 0.366 | Y112: 2.757 | Z112: 4 | AA112: 50
A113: 111 | B113: Grocery | C113: 25 to 34 | D113: Male | E113: Single Alone | F113: 1 personal veh | G113: $25,000 - $49,999 | H113: 5 - 9 min | I113: 6 to 10 min | J113: $101 - $200 | M113: 0.331 | N113: 0.742 | Q113: 0.616 | T113: 0.471 | U113: -1.868 | V113: 1.924 | W113: 0.366 | Y113: 2.582 | Z113: 4 | AA113: 200
A114: 112 | B114: Grocery | C114: Under 25 | D114: Male | E114: Couple No Children | F114: 3 to 5 personal vehs | G114: $50,000 - $74,999 | H114: 10 -19 min | I114: Less than 5 min | J114: $51 - $100 | M114: 0.331 | P114: 0.227 | Q114: 1.054 | R114: 0.206 | U114: -1.747 | V114: 1.924 | W114: 0.366 | Y114: 2.361 | Z114: 4 | AA114: 100
A115: 113 | B115: Grocery | C115: Under 25 | D115: Female | E115: Single Alone | F115: 2 personal vehs | G115: $75,000 - $99,999 | H115: 40 - 59 min | I115: Less than 5 min | J115: 0 | M115: 0.331 | Q115: 0.672 | V115: 1.924 | W115: 0.366 | Y115: 3.293 | Z115: 4 | AA115: 0
A116: 114 | B116: Grocery | C116: 25 to 34 | D116: Male | E116: Couple w/ Children under 18 | F116: 3 to 5 personal vehs | G116: <$25,000 | H116: 10 -19 min | I116: 6 to 10 min | J116: $1 - $20 | M116: 0.331 | N116: 0.742 | Q116: 1.054 | T116: 0.471 | U116: -1.84 | V116: 1.924 | W116: 0.366 | Y116: 3.048 | Z116: 4 | AA116: 20
A117: 115 | B117: Grocery | C117: 35 to 44 | D117: Female | E117: Single Parent w/ Children under 18 | F117: 3 to 5 personal vehs | G117: $50,000 - $74,999 | H117: 5 - 9 min | I117: 11 to 20 min | J117: $101 - $200 | M117: 0.331 | N117: 0.836 | P117: 0.582 | Q117: 1.054 | R117: 0.206 | T117: 0.478 | U117: -1.868 | V117: 1.924 | W117: 0.366 | Y117: 3.909 | Z117: 4 | AA117: 200
A118: 116 | B118: Grocery | C118: 45 to 59 | D118: Female | E118: Couple No Children | F118: 0 personal vehs | G118: <$25,000 | H118: 40 - 59 min | I118: Less than 5 min | J118: More than $200 | M118: 0.331 | N118: 0.745 | P118: 0.227 | U118: -1.697 | V118: 1.924 | W118: 0.366 | Y118: 1.896 | Z118: 3 | AA118: 200
A119: 117 | B119: Grocery | C119: Under 25 | D119: Male | E119: Couple w/ Children under 18 | F119: 1 personal veh | G119: $75,000 - $99,999 | H119: >59 min | I119: 6 to 10 min | J119: $1 - $20 | M119: 0.331 | Q119: 0.616 | T119: 0.471 | U119: -1.84 | V119: 1.924 | W119: 0.366 | Y119: 1.868 | Z119: 3 | AA119: 20
A120: 118 | B120: Grocery | C120: 25 to 34 | D120: Female | E120: Couple No Children | F120: 1 personal veh | G120: <$25,000 | H120: 10 -19 min | I120: 21 to 40 min | J120: $101 - $200 | M120: 0.331 | N120: 0.742 | P120: 0.227 | Q120: 0.616 | T120: 0.451 | U120: -1.868 | V120: 1.924 | W120: 0.366 | Y120: 2.789 | Z120: 4 | AA120: 200
A121: 119 | B121: Grocery | C121: Under 25 | D121: Male | E121: Living w/ Roommates/Friends | F121: 3 to 5 personal vehs | G121: $25,000 - $49,999 | H121: 20 - 39 min | I121: 11 to 20 min | J121: $51 - $100 | M121: 0.331 | P121: 0.268 | Q121: 1.054 | T121: 0.478 | U121: -1.747 | V121: 1.924 | W121: 0.366 | Y121: 2.674 | Z121: 4 | AA121: 100
A122: 120 | B122: Grocery | C122: 60 to 64 | D122: Male | E122: Single Alone | F122: 2 personal vehs | G122: <$25,000 | H122: 5 - 9 min | I122: 11 to 20 min | J122: $101 - $200 | M122: 0.331 | N122: 0.391 | Q122: 0.672 | T122: 0.478 | U122: -1.868 | V122: 1.924 | W122: 0.366 | Y122: 2.294 | Z122: 4 | AA122: 200
A123: 121 | B123: Grocery | C123: 25 to 34 | D123: Male | E123: Couple No Children | F123: 1 personal veh | G123: <$25,000 | H123: 5 - 9 min | I123: 11 to 20 min | J123: $51 - $100 | M123: 0.331 | N123: 0.742 | P123: 0.227 | Q123: 0.616 | T123: 0.478 | U123: -1.747 | V123: 1.924 | W123: 0.366 | Y123: 2.937 | Z123: 4 | AA123: 100
A124: 122 | B124: Grocery | C124: 45 to 59 | D124: Male | E124: Couple No Children | F124: 2 personal vehs | G124: >= $100,000 | H124: 5 - 9 min | I124: Less than 5 min | J124: $51 - $100 | M124: 0.331 | N124: 0.745 | P124: 0.227 | Q124: 0.672 | U124: -1.747 | V124: 1.924 | W124: 0.366 | Y124: 2.518 | Z124: 4 | AA124: 100
A125: 123 | B125: Grocery | C125: 35 to 44 | D125: Female | E125: Couple No Children | F125: 2 personal vehs | G125: $50,000 - $74,999 | H125: 5 - 9 min | I125: 11 to 20 min | J125: $101 - $200 | M125: 0.331 | N125: 0.836 | P125: 0.227 | Q125: 0.672 | R125: 0.206 | T125: 0.478 | U125: -1.868 | V125: 1.924 | W125: 0.366 | Y125: 3.172 | Z125: 4 | AA125: 200
A126: 124 | B126: Grocery | C126: 35 to 44 | D126: Male | E126: Single Alone | F126: 2 personal vehs | G126: >= $100,000 | H126: 20 - 39 min | I126: 11 to 20 min | J126: $51 - $100 | M126: 0.331 | N126: 0.836 | Q126: 0.672 | T126: 0.478 | U126: -1.747 | V126: 1.924 | W126: 0.366 | Y126: 2.86 | Z126: 4 | AA126: 100
A127: 125 | B127: Grocery | C127: 65 or older | D127: Male | E127: Single Alone | F127: 0 personal vehs | G127: $50,000 - $74,999 | H127: 20 - 39 min | I127: 6 to 10 min | J127: $101 - $200 | M127: 0.331 | N127: 0.599 | R127: 0.206 | T127: 0.471 | U127: -1.868 | V127: 1.924 | W127: 0.366 | Y127: 2.029 | Z127: 4 | AA127: 200
A128: 126 | B128: Grocery | C128: Under 25 | D128: Female | E128: Couple No Children | F128: 1 personal veh | G128: $25,000 - $49,999 | H128: 20 - 39 min | I128: Less than 5 min | J128: More than $200 | M128: 0.331 | P128: 0.227 | Q128: 0.616 | U128: -1.697 | V128: 1.924 | W128: 0.366 | Y128: 1.767 | Z128: 3 | AA128: 200
A129: 127 | B129: Grocery | C129: 45 to 59 | D129: Female | E129: Single Alone | F129: 2 personal vehs | G129: $75,000 - $99,999 | H129: 10 -19 min | I129: 6 to 10 min | J129: $1 - $20 | M129: 0.331 | N129: 0.745 | Q129: 0.672 | T129: 0.471 | U129: -1.84 | V129: 1.924 | W129: 0.366 | Y129: 2.669 | Z129: 4 | AA129: 20
A130: 128 | B130: Grocery | C130: 35 to 44 | D130: Female | E130: Single Alone | F130: 1 personal veh | G130: >= $100,000 | H130: 20 - 39 min | I130: 6 to 10 min | J130: $51 - $100 | M130: 0.331 | N130: 0.836 | Q130: 0.616 | T130: 0.471 | U130: -1.747 | V130: 1.924 | W130: 0.366 | Y130: 2.797 | Z130: 4 | AA130: 100
A131: 129 | B131: Grocery | C131: Under 25 | D131: Female | E131: Single Alone | F131: 3 to 5 personal vehs | G131: >= $100,000 | H131: 20 - 39 min | I131: Less than 5 min | J131: $21 - $50 | M131: 0.331 | Q131: 1.054 | U131: -1.599 | V131: 1.924 | W131: 0.366 | Y131: 2.076 | Z131: 4 | AA131: 50
A132: 130 | B132: Grocery | C132: Under 25 | D132: Female | E132: Single Alone | F132: 2 personal vehs | G132: <$25,000 | H132: 20 - 39 min | I132: 6 to 10 min | J132: 0 | M132: 0.331 | Q132: 0.672 | T132: 0.471 | V132: 1.924 | W132: 0.366 | Y132: 3.764 | Z132: 4 | AA132: 0
A133: 131 | B133: Grocery | C133: 45 to 59 | D133: Male | E133: Single Alone | F133: 1 personal veh | G133: $75,000 - $99,999 | H133: 20 - 39 min | I133: Less than 5 min | J133: $21 - $50 | M133: 0.331 | N133: 0.745 | Q133: 0.616 | U133: -1.599 | V133: 1.924 | W133: 0.366 | Y133: 2.383 | Z133: 4 | AA133: 50
A134: 132 | B134: Grocery | C134: 35 to 44 | D134: Male | E134: Single Alone | F134: 2 personal vehs | G134: $50,000 - $74,999 | H134: 20 - 39 min | I134: 11 to 20 min | J134: $51 - $100 | M134: 0.331 | N134: 0.836 | Q134: 0.672 | R134: 0.206 | T134: 0.478 | U134: -1.747 | V134: 1.924 | W134: 0.366 | Y134: 3.066 | Z134: 4 | AA134: 100
A135: 133 | B135: Grocery | C135: 25 to 34 | D135: Female | E135: Couple w/ Children under 18 | F135: 2 personal vehs | G135: $75,000 - $99,999 | H135: < 5min | I135: 21 to 40 min | J135: $21 - $50 | M135: 0.331 | N135: 0.742 | Q135: 0.672 | T135: 0.451 | U135: -1.599 | V135: 1.924 | W135: 0.366 | Y135: 2.887 | Z135: 4 | AA135: 50
A136: 134 | B136: Grocery | C136: 25 to 34 | D136: Male | E136: Couple No Children | F136: 2 personal vehs | G136: <$25,000 | H136: 20 - 39 min | I136: 21 to 40 min | J136: $1 - $20 | M136: 0.331 | N136: 0.742 | P136: 0.227 | Q136: 0.672 | T136: 0.451 | U136: -1.84 | V136: 1.924 | W136: 0.366 | Y136: 2.873 | Z136: 4 | AA136: 20
A137: 135 | B137: Grocery | C137: 65 or older | D137: Female | E137: Single Parent w/ Children under 18 | F137: 3 to 5 personal vehs | G137: >= $100,000 | H137: 20 - 39 min | I137: 11 to 20 min | J137: $21 - $50 | M137: 0.331 | N137: 0.599 | P137: 0.582 | Q137: 1.054 | T137: 0.478 | U137: -1.599 | V137: 1.924 | W137: 0.366 | Y137: 3.735 | Z137: 4 | AA137: 50
A138: 136 | B138: Grocery | C138: 65 or older | D138: Male | E138: Single Alone | F138: 2 personal vehs | G138: <$25,000 | H138: >59 min | I138: 6 to 10 min | J138: 0 | M138: 0.331 | N138: 0.599 | Q138: 0.672 | T138: 0.471 | V138: 1.924 | W138: 0.366 | Y138: 4.363 | Z138: 4 | AA138: 0
A139: 137 | B139: Grocery | C139: Under 25 | D139: Female | E139: Single Alone | F139: 2 personal vehs | G139: $75,000 - $99,999 | H139: >59 min | I139: Less than 5 min | J139: $1 - $20 | M139: 0.331 | Q139: 0.672 | U139: -1.84 | V139: 1.924 | W139: 0.366 | Y139: 1.453 | Z139: 3 | AA139: 20
A140: 138 | B140: Grocery | C140: 45 to 59 | D140: Female | E140: Couple No Children | F140: 1 personal veh | G140: $25,000 - $49,999 | H140: >59 min | I140: 11 to 20 min | J140: $51 - $100 | M140: 0.331 | N140: 0.745 | P140: 0.227 | Q140: 0.616 | T140: 0.478 | U140: -1.747 | V140: 1.924 | W140: 0.366 | Y140: 2.94 | Z140: 4 | AA140: 100
A141: 139 | B141: Grocery | C141: Under 25 | D141: Female | E141: Couple No Children | F141: 2 personal vehs | G141: <$25,000 | H141: 20 - 39 min | I141: 6 to 10 min | J141: $51 - $100 | M141: 0.331 | P141: 0.227 | Q141: 0.672 | T141: 0.471 | U141: -1.747 | V141: 1.924 | W141: 0.366 | Y141: 2.244 | Z141: 4 | AA141: 100
A142: 140 | B142: Grocery | C142: 65 or older | D142: Female | E142: Single Alone | F142: 1 personal veh | G142: $25,000 - $49,999 | H142: 10 -19 min | I142: 6 to 10 min | J142: $21 - $50 | M142: 0.331 | N142: 0.599 | Q142: 0.616 | T142: 0.471 | U142: -1.599 | V142: 1.924 | W142: 0.366 | Y142: 2.708 | Z142: 4 | AA142: 50
A143: 141 | B143: Grocery | C143: 35 to 44 | D143: Female | E143: Single Alone | F143: 2 personal vehs | G143: <$25,000 | H143: 10 -19 min | I143: 11 to 20 min | J143: $21 - $50 | M143: 0.331 | N143: 0.836 | Q143: 0.672 | T143: 0.478 | U143: -1.599 | V143: 1.924 | W143: 0.366 | Y143: 3.008 | Z143: 4 | AA143: 50
A144: 142 | B144: Grocery | C144: Under 25 | D144: Female | E144: Single Alone | F144: 1 personal veh | G144: >= $100,000 | H144: 10 -19 min | I144: 11 to 20 min | J144: $101 - $200 | M144: 0.331 | Q144: 0.616 | T144: 0.478 | U144: -1.868 | V144: 1.924 | W144: 0.366 | Y144: 1.847 | Z144: 3 | AA144: 200
A145: 143 | B145: Grocery | C145: 35 to 44 | D145: Male | E145: Single Alone | F145: 1 personal veh | G145: $50,000 - $74,999 | H145: 5 - 9 min | I145: 6 to 10 min | J145: $101 - $200 | M145: 0.331 | N145: 0.836 | Q145: 0.616 | R145: 0.206 | T145: 0.471 | U145: -1.868 | V145: 1.924 | W145: 0.366 | Y145: 2.882 | Z145: 4 | AA145: 200
A146: 144 | B146: Grocery | C146: Under 25 | D146: Male | E146: Couple No Children | F146: 3 to 5 personal vehs | G146: $25,000 - $49,999 | H146: 10 -19 min | I146: Less than 5 min | J146: $51 - $100 | M146: 0.331 | P146: 0.227 | Q146: 1.054 | U146: -1.747 | V146: 1.924 | W146: 0.366 | Y146: 2.155 | Z146: 4 | AA146: 100
A147: 145 | B147: Grocery | C147: Under 25 | D147: Male | E147: Single Alone | F147: 0 personal vehs | G147: >= $100,000 | H147: 10 -19 min | I147: 6 to 10 min | J147: $21 - $50 | M147: 0.331 | T147: 0.471 | U147: -1.599 | V147: 1.924 | W147: 0.366 | Y147: 1.493 | Z147: 3 | AA147: 50
A148: 146 | B148: Grocery | C148: 65 or older | D148: Female | E148: Single Alone | F148: 1 personal veh | G148: $50,000 - $74,999 | H148: 40 - 59 min | I148: 11 to 20 min | J148: $51 - $100 | M148: 0.331 | N148: 0.599 | Q148: 0.616 | R148: 0.206 | T148: 0.478 | U148: -1.747 | V148: 1.924 | W148: 0.366 | Y148: 2.773 | Z148: 4 | AA148: 100
A149: 147 | B149: Grocery | C149: Under 25 | D149: Female | E149: Couple No Children | F149: 2 personal vehs | G149: $25,000 - $49,999 | H149: 40 - 59 min | I149: 6 to 10 min | J149: $51 - $100 | M149: 0.331 | P149: 0.227 | Q149: 0.672 | T149: 0.471 | U149: -1.747 | V149: 1.924 | W149: 0.366 | Y149: 2.244 | Z149: 4 | AA149: 100
A150: 148 | B150: Grocery | C150: 65 or older | D150: Female | E150: Single Parent w/ Children under 18 | F150: 1 personal veh | G150: $25,000 - $49,999 | H150: 10 -19 min | I150: 6 to 10 min | J150: $21 - $50 | M150: 0.331 | N150: 0.599 | P150: 0.582 | Q150: 0.616 | T150: 0.471 | U150: -1.599 | V150: 1.924 | W150: 0.366 | Y150: 3.29 | Z150: 4 | AA150: 50
A151: 149 | B151: Grocery | C151: 45 to 59 | D151: Female | E151: Couple No Children | F151: 2 personal vehs | G151: $25,000 - $49,999 | H151: 20 - 39 min | I151: Less than 5 min | J151: $51 - $100 | M151: 0.331 | N151: 0.745 | P151: 0.227 | Q151: 0.672 | U151: -1.747 | V151: 1.924 | W151: 0.366 | Y151: 2.518 | Z151: 4 | AA151: 100
A152: 150 | B152: Grocery | C152: Under 25 | D152: Female | E152: Couple No Children | F152: 1 personal veh | G152: <$25,000 | H152: 10 -19 min | I152: 11 to 20 min | J152: $51 - $100 | M152: 0.331 | P152: 0.227 | Q152: 0.616 | T152: 0.478 | U152: -1.747 | V152: 1.924 | W152: 0.366 | Y152: 2.195 | Z152: 4 | AA152: 100
A153: 151 | B153: Grocery | C153: 45 to 59 | D153: Female | E153: Couple No Children | F153: 2 personal vehs | G153: $75,000 - $99,999 | H153: 10 -19 min | I153: 6 to 10 min | J153: $1 - $20 | M153: 0.331 | N153: 0.745 | P153: 0.227 | Q153: 0.672 | T153: 0.471 | U153: -1.84 | V153: 1.924 | W153: 0.366 | Y153: 2.896 | Z153: 4 | AA153: 20
A154: 152 | B154: Grocery | C154: Under 25 | D154: Female | E154: Couple w/ Children under 18 | F154: 1 personal veh | G154: $75,000 - $99,999 | H154: 20 - 39 min | I154: Less than 5 min | J154: $51 - $100 | M154: 0.331 | Q154: 0.616 | U154: -1.747 | V154: 1.924 | W154: 0.366 | Y154: 1.49 | Z154: 3 | AA154: 100
A155: 153 | B155: Grocery | C155: 45 to 59 | D155: Male | E155: Couple w/ Children under 18 | F155: 2 personal vehs | G155: $25,000 - $49,999 | H155: 10 -19 min | I155: 11 to 20 min | J155: $51 - $100 | M155: 0.331 | N155: 0.745 | Q155: 0.672 | T155: 0.478 | U155: -1.747 | V155: 1.924 | W155: 0.366 | Y155: 2.769 | Z155: 4 | AA155: 100
A156: 154 | B156: Grocery | C156: Under 25 | D156: Female | E156: Single Alone | F156: 0 personal vehs | G156: $25,000 - $49,999 | H156: 20 - 39 min | I156: 6 to 10 min | J156: 0 | M156: 0.331 | T156: 0.471 | V156: 1.924 | W156: 0.366 | Y156: 3.092 | Z156: 4 | AA156: 0
A157: 155 | B157: Grocery | C157: 45 to 59 | D157: Female | E157: Couple w/ Children under 18 | F157: 3 to 5 personal vehs | G157: $75,000 - $99,999 | H157: 10 -19 min | I157: 11 to 20 min | J157: More than $200 | M157: 0.331 | N157: 0.745 | Q157: 1.054 | T157: 0.478 | U157: -1.697 | V157: 1.924 | W157: 0.366 | Y157: 3.201 | Z157: 4 | AA157: 200
A158: 156 | B158: Grocery | C158: Under 25 | D158: Male | E158: Single Alone | F158: 1 personal veh | G158: $50,000 - $74,999 | H158: 20 - 39 min | I158: 6 to 10 min | J158: $21 - $50 | M158: 0.331 | Q158: 0.616 | R158: 0.206 | T158: 0.471 | U158: -1.599 | V158: 1.924 | W158: 0.366 | Y158: 2.315 | Z158: 4 | AA158: 50
A159: 157 | B159: Grocery | C159: 45 to 59 | D159: Female | E159: Single Alone | F159: 2 personal vehs | G159: $25,000 - $49,999 | H159: 10 -19 min | I159: Less than 5 min | J159: $51 - $100 | M159: 0.331 | N159: 0.745 | Q159: 0.672 | U159: -1.747 | V159: 1.924 | W159: 0.366 | Y159: 2.291 | Z159: 4 | AA159: 100
A160: 158 | B160: Grocery | C160: Under 25 | D160: Female | E160: Single Alone | F160: 1 personal veh | G160: <$25,000 | H160: 10 -19 min | I160: 21 to 40 min | J160: $101 - $200 | M160: 0.331 | Q160: 0.616 | T160: 0.451 | U160: -1.868 | V160: 1.924 | W160: 0.366 | Y160: 1.82 | Z160: 3 | AA160: 200
A161: 159 | B161: Grocery | C161: 45 to 59 | D161: Female | E161: Single Alone | F161: 2 personal vehs | G161: $75,000 - $99,999 | H161: 10 -19 min | I161: 6 to 10 min | J161: $1 - $20 | M161: 0.331 | N161: 0.745 | Q161: 0.672 | T161: 0.471 | U161: -1.84 | V161: 1.924 | W161: 0.366 | Y161: 2.669 | Z161: 4 | AA161: 20
A162: 160 | B162: Grocery | C162: Under 25 | D162: Male | E162: Couple No Children | F162: 3 to 5 personal vehs | G162: $25,000 - $49,999 | H162: 10 -19 min | I162: Less than 5 min | J162: $1 - $20 | M162: 0.331 | P162: 0.227 | Q162: 1.054 | U162: -1.84 | V162: 1.924 | W162: 0.366 | Y162: 2.062 | Z162: 4 | AA162: 20
A163: 161 | B163: Grocery | C163: Under 25 | D163: Female | E163: Single Alone | F163: 3 to 5 personal vehs | G163: >= $100,000 | H163: 40 - 59 min | I163: Less than 5 min | J163: $21 - $50 | M163: 0.331 | Q163: 1.054 | U163: -1.599 | V163: 1.924 | W163: 0.366 | Y163: 2.076 | Z163: 4 | AA163: 50
A164: 162 | B164: Grocery | C164: 35 to 44 | D164: Female | E164: Single Alone | F164: 0 personal vehs | G164: $25,000 - $49,999 | H164: 40 - 59 min | I164: 11 to 20 min | J164: $21 - $50 | M164: 0.331 | N164: 0.836 | T164: 0.478 | U164: -1.599 | V164: 1.924 | W164: 0.366 | Y164: 2.336 | Z164: 4 | AA164: 50
A165: 163 | B165: Grocery | C165: 65 or older | D165: Female | E165: Couple No Children | F165: 1 personal veh | G165: <$25,000 | H165: 40 - 59 min | I165: 6 to 10 min | J165: $51 - $100 | M165: 0.331 | N165: 0.599 | P165: 0.227 | Q165: 0.616 | T165: 0.471 | U165: -1.747 | V165: 1.924 | W165: 0.366 | Y165: 2.787 | Z165: 4 | AA165: 100
A166: 164 | B166: Grocery | C166: 25 to 34 | D166: Male | E166: Single Alone | F166: 2 personal vehs | G166: $50,000 - $74,999 | H166: 10 -19 min | I166: 11 to 20 min | J166: $51 - $100 | M166: 0.331 | N166: 0.742 | Q166: 0.672 | R166: 0.206 | T166: 0.478 | U166: -1.747 | V166: 1.924 | W166: 0.366 | Y166: 2.972 | Z166: 4 | AA166: 100
A167: 165 | B167: Grocery | C167: 35 to 44 | D167: Female | E167: Single Alone | F167: 2 personal vehs | G167: <$25,000 | H167: 10 -19 min | I167: Less than 5 min | J167: $51 - $100 | M167: 0.331 | N167: 0.836 | Q167: 0.672 | U167: -1.747 | V167: 1.924 | W167: 0.366 | Y167: 2.382 | Z167: 4 | AA167: 100
A168: 166 | B168: Grocery | C168: 65 or older | D168: Female | E168: Single Alone | F168: 0 personal vehs | G168: $75,000 - $99,999 | H168: 10 -19 min | I168: 6 to 10 min | J168: $51 - $100 | M168: 0.331 | N168: 0.599 | T168: 0.471 | U168: -1.747 | V168: 1.924 | W168: 0.366 | Y168: 1.944 | Z168: 3 | AA168: 100
A169: 167 | B169: Grocery | C169: Under 25 | D169: Male | E169: Couple w/ Children under 18 | F169: 1 personal veh | G169: <$25,000 | H169: < 5min | I169: 21 to 40 min | J169: $51 - $100 | M169: 0.331 | Q169: 0.616 | T169: 0.451 | U169: -1.747 | V169: 1.924 | W169: 0.366 | Y169: 1.941 | Z169: 3 | AA169: 100
A170: 168 | B170: Grocery | C170: 45 to 59 | D170: Male | E170: Couple w/ Children under 18 | F170: 1 personal veh | G170: >= $100,000 | H170: 20 - 39 min | I170: 6 to 10 min | J170: $101 - $200 | M170: 0.331 | N170: 0.745 | Q170: 0.616 | T170: 0.471 | U170: -1.868 | V170: 1.924 | W170: 0.366 | Y170: 2.585 | Z170: 4 | AA170: 200
A171: 169 | B171: Grocery | C171: 45 to 59 | D171: Male | E171: Couple No Children | F171: 1 personal veh | G171: <$25,000 | H171: 10 -19 min | I171: 11 to 20 min | J171: $51 - $100 | M171: 0.331 | N171: 0.745 | P171: 0.227 | Q171: 0.616 | T171: 0.478 | U171: -1.747 | V171: 1.924 | W171: 0.366 | Y171: 2.94 | Z171: 4 | AA171: 100
A172: 170 | B172: Grocery | C172: 25 to 34 | D172: Male | E172: Single Alone | F172: 3 to 5 personal vehs | G172: <$25,000 | H172: 20 - 39 min | I172: 11 to 20 min | J172: $1 - $20 | M172: 0.331 | N172: 0.742 | Q172: 1.054 | T172: 0.478 | U172: -1.84 | V172: 1.924 | W172: 0.366 | Y172: 3.055 | Z172: 4 | AA172: 20
A173: 171 | B173: Grocery | C173: 35 to 44 | D173: Male | E173: Couple w/ Children under 18 | F173: 3 to 5 personal vehs | G173: $50,000 - $74,999 | H173: 5 - 9 min | I173: 11 to 20 min | J173: $101 - $200 | M173: 0.331 | N173: 0.836 | Q173: 1.054 | R173: 0.206 | T173: 0.478 | U173: -1.868 | V173: 1.924 | W173: 0.366 | Y173: 3.327 | Z173: 4 | AA173: 200
A174: 172 | B174: Grocery | C174: 65 or older | D174: Female | E174: Living w/ Roommates/Friends | F174: 1 personal veh | G174: $25,000 - $49,999 | H174: 10 -19 min | I174: 6 to 10 min | J174: $21 - $50 | M174: 0.331 | N174: 0.599 | P174: 0.268 | Q174: 0.616 | T174: 0.471 | U174: -1.599 | V174: 1.924 | W174: 0.366 | Y174: 2.976 | Z174: 4 | AA174: 50
A175: 173 | B175: Grocery | C175: 25 to 34 | D175: Male | E175: Couple w/ Children under 18 | F175: 2 personal vehs | G175: $75,000 - $99,999 | H175: < 5min | I175: 11 to 20 min | J175: $1 - $20 | M175: 0.331 | N175: 0.742 | Q175: 0.672 | T175: 0.478 | U175: -1.84 | V175: 1.924 | W175: 0.366 | Y175: 2.673 | Z175: 4 | AA175: 20
A176: 174 | B176: Grocery | C176: 45 to 59 | D176: Male | E176: Couple w/ Children under 18 | F176: 3 to 5 personal vehs | G176: $25,000 - $49,999 | H176: < 5min | I176: 6 to 10 min | J176: $51 - $100 | M176: 0.331 | N176: 0.745 | Q176: 1.054 | T176: 0.471 | U176: -1.747 | V176: 1.924 | W176: 0.366 | Y176: 3.144 | Z176: 4 | AA176: 100
A177: 175 | B177: Grocery | C177: 45 to 59 | D177: Female | E177: Couple No Children | F177: 1 personal veh | G177: $50,000 - $74,999 | H177: 10 -19 min | I177: 6 to 10 min | J177: More than $200 | M177: 0.331 | N177: 0.745 | P177: 0.227 | Q177: 0.616 | R177: 0.206 | T177: 0.471 | U177: -1.697 | V177: 1.924 | W177: 0.366 | Y177: 3.189 | Z177: 4 | AA177: 200
A178: 176 | B178: Grocery | C178: 45 to 59 | D178: Female | E178: Single Alone | F178: 1 personal veh | G178: <$25,000 | H178: 40 - 59 min | I178: 6 to 10 min | J178: More than $200 | M178: 0.331 | N178: 0.745 | Q178: 0.616 | T178: 0.471 | U178: -1.697 | V178: 1.924 | W178: 0.366 | Y178: 2.756 | Z178: 4 | AA178: 200
A179: 177 | B179: Grocery | C179: 45 to 59 | D179: Female | E179: Couple w/ Children under 18 | F179: 2 personal vehs | G179: $25,000 - $49,999 | H179: 20 - 39 min | I179: 21 to 40 min | J179: $101 - $200 | M179: 0.331 | N179: 0.745 | Q179: 0.672 | T179: 0.451 | U179: -1.868 | V179: 1.924 | W179: 0.366 | Y179: 2.621 | Z179: 4 | AA179: 200
A180: 178 | B180: Grocery | C180: 35 to 44 | D180: Female | E180: Single Alone | F180: 0 personal vehs | G180: $25,000 - $49,999 | H180: 20 - 39 min | I180: 6 to 10 min | J180: $21 - $50 | M180: 0.331 | N180: 0.836 | T180: 0.471 | U180: -1.599 | V180: 1.924 | W180: 0.366 | Y180: 2.329 | Z180: 4 | AA180: 50
A181: 179 | B181: Grocery | C181: Under 25 | D181: Female | E181: Couple No Children | F181: 2 personal vehs | G181: $25,000 - $49,999 | H181: 40 - 59 min | I181: 6 to 10 min | J181: $51 - $100 | M181: 0.331 | P181: 0.227 | Q181: 0.672 | T181: 0.471 | U181: -1.747 | V181: 1.924 | W181: 0.366 | Y181: 2.244 | Z181: 4 | AA181: 100
A182: 180 | B182: Grocery | C182: 45 to 59 | D182: Female | E182: Couple No Children | F182: 1 personal veh | G182: <$25,000 | H182: >59 min | I182: Less than 5 min | J182: 0 | M182: 0.331 | N182: 0.745 | P182: 0.227 | Q182: 0.616 | V182: 1.924 | W182: 0.366 | Y182: 4.209 | Z182: 4 | AA182: 0
A183: 181 | B183: Grocery | C183: 35 to 44 | D183: Female | E183: Single Alone | F183: 2 personal vehs | G183: <$25,000 | H183: 10 -19 min | I183: Less than 5 min | J183: $51 - $100 | M183: 0.331 | N183: 0.836 | Q183: 0.672 | U183: -1.747 | V183: 1.924 | W183: 0.366 | Y183: 2.382 | Z183: 4 | AA183: 100
A184: 182 | B184: Grocery | C184: Under 25 | D184: Male | E184: Single Alone | F184: 3 to 5 personal vehs | G184: $75,000 - $99,999 | H184: < 5min | I184: 6 to 10 min | J184: $51 - $100 | M184: 0.331 | Q184: 1.054 | T184: 0.471 | U184: -1.747 | V184: 1.924 | W184: 0.366 | Y184: 2.399 | Z184: 4 | AA184: 100
A185: 183 | B185: Grocery | C185: 45 to 59 | D185: Female | E185: Couple No Children | F185: 1 personal veh | G185: $75,000 - $99,999 | H185: 10 -19 min | I185: Less than 5 min | J185: 0 | M185: 0.331 | N185: 0.745 | P185: 0.227 | Q185: 0.616 | V185: 1.924 | W185: 0.366 | Y185: 4.209 | Z185: 4 | AA185: 0
A186: 184 | B186: Grocery | C186: 35 to 44 | D186: Female | E186: Living w/ Roommates/Friends | F186: 1 personal veh | G186: >= $100,000 | H186: 20 - 39 min | I186: 6 to 10 min | J186: $51 - $100 | M186: 0.331 | N186: 0.836 | P186: 0.268 | Q186: 0.616 | T186: 0.471 | U186: -1.747 | V186: 1.924 | W186: 0.366 | Y186: 3.065 | Z186: 4 | AA186: 100
A187: 185 | B187: Grocery | C187: 65 or older | D187: Female | E187: Living w/ Roommates/Friends | F187: 2 personal vehs | G187: $50,000 - $74,999 | H187: 20 - 39 min | I187: Less than 5 min | J187: $101 - $200 | M187: 0.331 | N187: 0.599 | P187: 0.268 | Q187: 0.672 | R187: 0.206 | U187: -1.868 | V187: 1.924 | W187: 0.366 | Y187: 2.498 | Z187: 4 | AA187: 200
A188: 186 | B188: Grocery | C188: 65 or older | D188: Male | E188: Single Parent w/ Children under 18 | F188: 2 personal vehs | G188: >= $100,000 | H188: 10 -19 min | I188: Less than 5 min | J188: $51 - $100 | M188: 0.331 | N188: 0.599 | P188: 0.582 | Q188: 0.672 | U188: -1.747 | V188: 1.924 | W188: 0.366 | Y188: 2.727 | Z188: 4 | AA188: 100
A189: 187 | B189: Grocery | C189: 25 to 34 | D189: Female | E189: Couple No Children | F189: 2 personal vehs | G189: $25,000 - $49,999 | H189: < 5min | I189: 6 to 10 min | J189: $51 - $100 | M189: 0.331 | N189: 0.742 | P189: 0.227 | Q189: 0.672 | T189: 0.471 | U189: -1.747 | V189: 1.924 | W189: 0.366 | Y189: 2.986 | Z189: 4 | AA189: 100
A190: 188 | B190: Grocery | C190: 35 to 44 | D190: Female | E190: Single Alone | F190: 2 personal vehs | G190: >= $100,000 | H190: 20 - 39 min | I190: 11 to 20 min | J190: $51 - $100 | M190: 0.331 | N190: 0.836 | Q190: 0.672 | T190: 0.478 | U190: -1.747 | V190: 1.924 | W190: 0.366 | Y190: 2.86 | Z190: 4 | AA190: 100
A191: 189 | B191: Grocery | C191: 25 to 34 | D191: Female | E191: Living w/ Roommates/Friends | F191: 2 personal vehs | G191: <$25,000 | H191: 5 - 9 min | I191: Less than 5 min | J191: $51 - $100 | M191: 0.331 | N191: 0.742 | P191: 0.268 | Q191: 0.672 | U191: -1.747 | V191: 1.924 | W191: 0.366 | Y191: 2.556 | Z191: 4 | AA191: 100
A192: 190 | B192: Grocery | C192: 25 to 34 | D192: Male | E192: Couple No Children | F192: 2 personal vehs | G192: $25,000 - $49,999 | H192: 20 - 39 min | I192: 6 to 10 min | J192: $1 - $20 | M192: 0.331 | N192: 0.742 | P192: 0.227 | Q192: 0.672 | T192: 0.471 | U192: -1.84 | V192: 1.924 | W192: 0.366 | Y192: 2.893 | Z192: 4 | AA192: 20
A193: 191 | B193: Grocery | C193: 60 to 64 | D193: Female | E193: Single Alone | F193: 2 personal vehs | G193: >= $100,000 | H193: 10 -19 min | I193: 6 to 10 min | J193: $21 - $50 | M193: 0.331 | N193: 0.391 | Q193: 0.672 | T193: 0.471 | U193: -1.599 | V193: 1.924 | W193: 0.366 | Y193: 2.556 | Z193: 4 | AA193: 50
A194: 192 | B194: Grocery | C194: Under 25 | D194: Female | E194: Couple No Children | F194: 3 to 5 personal vehs | G194: $50,000 - $74,999 | H194: 10 -19 min | I194: Less than 5 min | J194: $21 - $50 | M194: 0.331 | P194: 0.227 | Q194: 1.054 | R194: 0.206 | U194: -1.599 | V194: 1.924 | W194: 0.366 | Y194: 2.509 | Z194: 4 | AA194: 50
A195: 193 | B195: Grocery | C195: 35 to 44 | D195: Male | E195: Single Parent w/ Children under 18 | F195: 1 personal veh | G195: $25,000 - $49,999 | H195: 10 -19 min | I195: 6 to 10 min | J195: $51 - $100 | M195: 0.331 | N195: 0.836 | P195: 0.582 | Q195: 0.616 | T195: 0.471 | U195: -1.747 | V195: 1.924 | W195: 0.366 | Y195: 3.379 | Z195: 4 | AA195: 100
A196: 194 | B196: Grocery | C196: 45 to 59 | D196: Female | E196: Couple No Children | F196: 1 personal veh | G196: $25,000 - $49,999 | H196: >59 min | I196: 11 to 20 min | J196: $51 - $100 | M196: 0.331 | N196: 0.745 | P196: 0.227 | Q196: 0.616 | T196: 0.478 | U196: -1.747 | V196: 1.924 | W196: 0.366 | Y196: 2.94 | Z196: 4 | AA196: 100
A197: 195 | B197: Grocery | C197: Under 25 | D197: Female | E197: Single Parent w/ Children under 18 | F197: 2 personal vehs | G197: $25,000 - $49,999 | H197: 10 -19 min | I197: 11 to 20 min | J197: $101 - $200 | M197: 0.331 | P197: 0.582 | Q197: 0.672 | T197: 0.478 | U197: -1.868 | V197: 1.924 | W197: 0.366 | Y197: 2.485 | Z197: 4 | AA197: 200
A198: 196 | B198: Grocery | C198: Under 25 | D198: Female | E198: Couple w/ Children under 18 | F198: 1 personal veh | G198: <$25,000 | H198: 5 - 9 min | I198: 6 to 10 min | J198: $21 - $50 | M198: 0.331 | Q198: 0.616 | T198: 0.471 | U198: -1.599 | V198: 1.924 | W198: 0.366 | Y198: 2.109 | Z198: 4 | AA198: 50
A199: 197 | B199: Grocery | C199: 35 to 44 | D199: Female | E199: Single Alone | F199: 2 personal vehs | G199: <$25,000 | H199: 10 -19 min | I199: Less than 5 min | J199: $51 - $100 | M199: 0.331 | N199: 0.836 | Q199: 0.672 | U199: -1.747 | V199: 1.924 | W199: 0.366 | Y199: 2.382 | Z199: 4 | AA199: 100
A200: 198 | B200: Grocery | C200: 65 or older | D200: Female | E200: Single Alone | F200: 0 personal vehs | G200: $75,000 - $99,999 | H200: 10 -19 min | I200: 6 to 10 min | J200: $51 - $100 | M200: 0.331 | N200: 0.599 | T200: 0.471 | U200: -1.747 | V200: 1.924 | W200: 0.366 | Y200: 1.944 | Z200: 3 | AA200: 100
... 1802 more rows

Sheet Regional Demographics
A1: Cumulative Demographics | P1: US Census Region Demographics
D3: NE | F3: MW | H3: S | J3: W | L3: US Overall | R3: NE | T3: MW | V3: S | X3: W | Z3: US Overall
D4: Urban | E4: Rural | F4: Urban | G4: Rural | H4: Urban | I4: Rural | J4: Urban | K4: Rural | L4: Urban | M4: Rural | R4: Urban | S4: Rural | T4: Urban | U4: Rural | V4: Urban | W4: Rural | X4: Urban | Y4: Rural | Z4: Urban | AA4: Rural
A5: Age | B5: 1 | C5: Under 25 | D5: 0 | E5: 0 | F5: 0 | G5: 0 | H5: 0 | I5: 0 | J5: 0 | K5: 0 | L5: 0 | M5: 0 | P5: Age | Q5: Under 25 | R5: 0.3285 | S5: 0.303 | T5: 0.3509 | U5: 0.321 | V5: 0.3531 | W5: 0.3252 | X5: 0.3586 | Y5: 0.335 | Z5: 0.347775 | AA5: 0.32105 | AC5: =RAND() -> 0.8671494083 | AD5: =VLOOKUP(AC5,$L$5:$M$10,2) -> 0.803325
B6: 2 | C6: 25 to 34 | D6: 0.3285 | E6: 0.303 | F6: 0.3509 | G6: 0.321 | H6: 0.3531 | I6: 0.3252 | J6: 0.3586 | K6: 0.335 | L6: 0.347775 | M6: 0.32105 | Q6: 25 to 34 | R6: 0.1323 | S6: 0.0925 | T6: 0.1358 | U6: 0.1052 | V6: 0.14 | W6: 0.1164 | X6: 0.1448 | Y6: 0.1185 | Z6: 0.138225 | AA6: 0.10815 | AC6: =RAND() -> 0.4079765284 | AD6: 0.32105
B7: 3 | C7: 35 to 44 | D7: 0.4608 | E7: 0.3955 | F7: 0.4867 | G7: 0.4262 | H7: 0.4931 | I7: 0.4416 | J7: 0.5034 | K7: 0.4535 | L7: 0.486 | M7: 0.4292 | Q7: 35 to 44 | R7: 0.1409 | S7: 0.1437 | T7: 0.1334 | U7: 0.1373 | V7: 0.1375 | W7: 0.1442 | X7: 0.1403 | Y7: 0.1378 | Z7: 0.138025 | AA7: 0.14075 | AC7: 0.435613355 | AD7: 0.32105
B8: 4 | C8: 45 to 59 | D8: 0.6017 | E8: 0.5392 | F8: 0.6201 | G8: 0.5635 | H8: 0.6306 | I8: 0.5858 | J8: 0.6437 | K8: 0.5913 | L8: 0.624025 | M8: 0.56995 | Q8: 45 to 59 | R8: 0.2098 | S8: 0.2532 | T8: 0.2046 | U8: 0.2354 | V8: 0.1975 | W8: 0.22 | X8: 0.1963 | Y8: 0.2249 | Z8: 0.20205 | AA8: 0.233375 | AC8: 0.2084412643 | AD8: 0
B9: 5 | C9: 60 to 64 | D9: 0.8115 | E9: 0.7924 | F9: 0.8247 | G9: 0.7989 | H9: 0.8281 | I9: 0.8058 | J9: 0.84 | K9: 0.8162 | L9: 0.826075 | M9: 0.803325 | Q9: 60 to 64 | R9: 0.0509 | S9: 0.063 | T9: 0.0474 | U9: 0.0585 | V9: 0.048 | W9: 0.0598 | X9: 0.0463 | Y9: 0.0607 | Z9: 0.04815 | AA9: 0.0605 | AC9: 0.3202578608 | AD9: 0
B10: 6 | C10: 65 or older | D10: 0.8624 | E10: 0.8554 | F10: 0.8721 | G10: 0.8574 | H10: 0.8761 | I10: 0.8656 | J10: 0.8863 | K10: 0.8769 | L10: 0.874225 | M10: 0.863825 | Q10: 65 or older | R10: 0.1375 | S10: 0.1446 | T10: 0.1279 | U10: 0.1426 | V10: 0.1239 | W10: 0.1343 | X10: 0.1138 | Y10: 0.1231 | Z10: 0.125775 | AA10: 0.13615 | AC10: 0.7916906168 | AD10: 0.56995
A11: Sex | B11: 1 | C11: Male | D11: 0.482 | E11: 0.5029 | F11: 0.4861 | G11: 0.5063 | H11: 0.4856 | I11: 0.5 | J11: 0.4961 | K11: 0.5114 | L11: 0.48745 | M11: 0.50515 | P11: Sex | Q11: Male | R11: 0.482 | S11: 0.5029 | T11: 0.4861 | U11: 0.5063 | V11: 0.4856 | W11: 0.5 | X11: 0.4961 | Y11: 0.5114 | Z11: 0.48745 | AA11: 0.50515
B12: 2 | C12: Female | D12: 1 | E12: 1 | F12: 1 | G12: 1 | H12: 1 | I12: 1 | J12: 1 | K12: 1 | L12: 1 | M12: 1 | Q12: Female | R12: 0.518 | S12: 0.4971 | T12: 0.5139 | U12: 0.4937 | V12: 0.5144 | W12: 0.5 | X12: 0.5039 | Y12: 0.4886 | Z12: 0.51255 | AA12: 0.49485
A13: Income | B13: 1 | C13: <$25,000 | D13: 0 | E13: 0 | F13: 0 | G13: 0 | H13: 0 | I13: 0 | J13: 0 | K13: 0 | L13: 0 | M13: 0 | P13: Income | Q13: <$25,000 | R13: 0.2267 | S13: 0.1781 | T13: 0.2536 | U13: 0.1974 | V13: 0.2608 | W13: 0.2542 | X13: 0.2127 | Y13: 0.1794 | Z13: 0.23845 | AA13: 0.202275
B14: 2 | C14: $25,000 - $49,999 | D14: 0.2267 | E14: 0.1781 | F14: 0.2536 | G14: 0.1974 | H14: 0.2608 | I14: 0.2542 | J14: 0.2127 | K14: 0.1794 | L14: 0.23845 | M14: 0.202275 | Q14: $25,000 - $49,999 | R14: 0.2167 | S14: 0.2361 | T14: 0.2581 | U14: 0.2608 | V14: 0.2588 | W14: 0.2593 | X14: 0.2374 | Y14: 0.2263 | Z14: 0.24275 | AA14: 0.245625
B15: 3 | C15: $50,000 - $74,999 | D15: 0.4434 | E15: 0.4142 | F15: 0.5117 | G15: 0.4582 | H15: 0.5196 | I15: 0.5135 | J15: 0.4501 | K15: 0.4057 | L15: 0.4812 | M15: 0.4479 | Q15: $50,000 - $74,999 | R15: 0.1734 | S15: 0.2027 | T15: 0.1873 | U15: 0.217 | V15: 0.1794 | W15: 0.1911 | X15: 0.1846 | Y15: 0.1952 | Z15: 0.181175 | AA15: 0.2015
B16: 4 | C16: $75,000 - $99,999 | D16: 0.6168 | E16: 0.6169 | F16: 0.699 | G16: 0.6752 | H16: 0.699 | I16: 0.7046 | J16: 0.6347 | K16: 0.6009 | L16: 0.662375 | M16: 0.6494 | Q16: $75,000 - $99,999 | R16: 0.1252 | S16: 0.1422 | T16: 0.1207 | U16: 0.144 | V16: 0.1125 | W16: 0.1226 | X16: 0.1269 | Y16: 0.1417 | Z16: 0.121325 | AA16: 0.137625
B17: 5 | C17: >= $100,000 | D17: 0.742 | E17: 0.7591 | F17: 0.8197 | G17: 0.8192 | H17: 0.8115 | I17: 0.8272 | J17: 0.7616 | K17: 0.7426 | L17: 0.7837 | M17: 0.787025 | Q17: >= $100,000 | R17: 0.258 | S17: 0.2409 | T17: 0.1803 | U17: 0.1808 | V17: 0.1885 | W17: 0.1728 | X17: 0.2384 | Y17: 0.2574 | Z17: 0.2163 | AA17: 0.212975
A18: HHType | B18: 1 | C18: Single Alone | D18: 0 | E18: 0 | F18: 0 | G18: 0 | H18: 0 | I18: 0 | J18: 0 | K18: 0 | L18: 0 | M18: 0 | P18: HHType | Q18: Single Alone | R18: 0.3844 | S18: 0.2687 | T18: 0.3793 | U18: 0.2609 | V18: 0.3759 | W18: 0.2902 | X18: 0.3449 | Y18: 0.2547 | Z18: 0.371125 | AA18: 0.268625
B19: 2 | C19: Couple No Children | D19: 0.3844 | E19: 0.2687 | F19: 0.3793 | G19: 0.2609 | H19: 0.3759 | I19: 0.2902 | J19: 0.3449 | K19: 0.2547 | L19: 0.371125 | M19: 0.268625 | Q19: Couple No Children | R19: 0.2576 | S19: 0.3762 | T19: 0.2606 | U19: 0.3868 | V19: 0.2606 | W19: 0.36 | X19: 0.2586 | Y19: 0.3641 | Z19: 0.25935 | AA19: 0.371775
B20: 3 | C20: Single Parent w/ Children under 18 | D20: 0.642 | E20: 0.6449 | F20: 0.6399 | G20: 0.6477 | H20: 0.6365 | I20: 0.6502 | J20: 0.6035 | K20: 0.6188 | L20: 0.630475 | M20: 0.6404 | Q20: Single Parent w/ Children under 18 | R20: 0.0961 | S20: 0.0658 | T20: 0.1024 | U20: 0.0646 | V20: 0.1099 | W20: 0.0797 | X20: 0.0986 | Y20: 0.0713 | Z20: 0.10175 | AA20: 0.07035
B21: 4 | C21: Couple w/ Children under 18 | D21: 0.7381 | E21: 0.7107 | F21: 0.7423 | G21: 0.7123 | H21: 0.7464 | I21: 0.7299 | J21: 0.7021 | K21: 0.6901 | L21: 0.732225 | M21: 0.71075 | Q21: Couple w/ Children under 18 | R21: 0.1992 | S21: 0.2378 | T21: 0.1942 | U21: 0.2461 | V21: 0.1917 | W21: 0.2326 | X21: 0.2234 | Y21: 0.2566 | Z21: 0.202125 | AA21: 0.243275
B22: 5 | C22: Living w/ Roommates/Friends | D22: 0.9373 | E22: 0.9485 | F22: 0.9365 | G22: 0.9584 | H22: 0.9381 | I22: 0.9625 | J22: 0.9255 | K22: 0.9467 | L22: 0.93435 | M22: 0.954025 | Q22: Living w/ Roommates/Friends | R22: 0.0627 | S22: 0.0515 | T22: 0.0635 | U22: 0.0417 | V22: 0.0618 | W22: 0.0375 | X22: 0.0746 | Y22: 0.0534 | Z22: 0.06565 | AA22: 0.046025
A23: Commute Time | B23: 1 | C23: < 5min | D23: 0 | E23: 0 | F23: 0 | G23: 0 | H23: 0 | I23: 0 | J23: 0 | K23: 0 | L23: 0 | M23: 0 | P23: Commute Time | Q23: < 5min | R23: 0.0296 | S23: 0.0454 | T23: 0.0397 | U23: 0.0584 | V23: 0.0298 | W23: 0.035 | X23: 0.0285 | Y23: 0.0541 | Z23: 0.0319 | AA23: 0.048225
B24: 2 | C24: 5 - 9 min | D24: 0.0296 | E24: 0.0454 | F24: 0.0397 | G24: 0.0584 | H24: 0.0298 | I24: 0.035 | J24: 0.0285 | K24: 0.0541 | L24: 0.0319 | M24: 0.048225 | Q24: 5 - 9 min | R24: 0.0968 | S24: 0.0949 | T24: 0.1349 | U24: 0.1079 | V24: 0.1075 | W24: 0.0801 | X24: 0.1055 | Y24: 0.0986 | Z24: 0.111175 | AA24: 0.095375
B25: 3 | C25: 10 -19 min | D25: 0.1264 | E25: 0.1403 | F25: 0.1746 | G25: 0.1663 | H25: 0.1373 | I25: 0.1151 | J25: 0.134 | K25: 0.1527 | L25: 0.143075 | M25: 0.1436 | Q25: 10 -19 min | R25: 0.2698 | S25: 0.2642 | T25: 0.3281 | U25: 0.2784 | V25: 0.3195 | W25: 0.2646 | X25: 0.312 | Y25: 0.2594 | Z25: 0.30735 | AA25: 0.26665
B26: 4 | C26: 20 - 39 min | D26: 0.3962 | E26: 0.4045 | F26: 0.5027 | G26: 0.4447 | H26: 0.4568 | I26: 0.3797 | J26: 0.446 | K26: 0.4121 | L26: 0.450425 | M26: 0.41025 | Q26: 20 - 39 min | R26: 0.348 | S26: 0.3781 | T26: 0.349 | U26: 0.3729 | V26: 0.3774 | W26: 0.3949 | X26: 0.3719 | Y26: 0.36 | Z26: 0.361575 | AA26: 0.376475
B27: 5 | C27: 40 - 59 min | D27: 0.7442 | E27: 0.7826 | F27: 0.8517 | G27: 0.8176 | H27: 0.8342 | I27: 0.7746 | J27: 0.8179 | K27: 0.7721 | L27: 0.812 | M27: 0.786725 | Q27: 40 - 59 min | R27: 0.1322 | S27: 0.1276 | T27: 0.0918 | U27: 0.1132 | V27: 0.1006 | W27: 0.1339 | X27: 0.1044 | Y27: 0.1291 | Z27: 0.10725 | AA27: 0.12595
B28: 6 | C28: >59 min | D28: 0.8764 | E28: 0.9102 | F28: 0.9435 | G28: 0.9308 | H28: 0.9348 | I28: 0.9085 | J28: 0.9223 | K28: 0.9012 | L28: 0.91925 | M28: 0.912675 | Q28: >59 min | R28: 0.1236 | S28: 0.0897 | T28: 0.0565 | U28: 0.0691 | V28: 0.0651 | W28: 0.0916 | X28: 0.0777 | Y28: 0.0989 | Z28: 0.080725 | AA28: 0.087325
A29: Grocery Stats | C29: Dollars Spent | P29: Grocery Stats | Q29: Dollars Spent
B30: 1 | C30: $0 | D30: 0 | E30: 0 | F30: 0 | G30: 0 | H30: 0 | I30: 0 | J30: 0 | K30: 0 | L30: 0 | M30: 0 | Q30: $0 | R30: 0 | S30: 0 | T30: 0.026 | U30: 0 | V30: 0.021 | W30: 0 | X30: 0.014 | Y30: 0 | Z30: 0.01525 | AA30: 0
B31: 2 | C31: $1 - $20 | D31: 0 | E31: 0 | F31: 0.026 | G31: 0 | H31: 0.021 | I31: 0 | J31: 0.014 | K31: 0 | L31: 0.01525 | M31: 0 | Q31: $1 - $20 | R31: 0.06 | S31: 0.036 | T31: 0.12 | U31: 0 | V31: 0.077 | W31: 0.09 | X31: 0.111 | Y31: 0.083 | Z31: 0.092 | AA31: 0.05225
B32: 3 | C32: $21 - $50 | D32: 0.06 | E32: 0.036 | F32: 0.146 | G32: 0 | H32: 0.098 | I32: 0.09 | J32: 0.125 | K32: 0.083 | L32: 0.10725 | M32: 0.05225 | Q32: $21 - $50 | R32: 0.21 | S32: 0.143 | T32: 0.222 | U32: 0.171 | V32: 0.314 | W32: 0.194 | X32: 0.257 | Y32: 0.208 | Z32: 0.25075 | AA32: 0.179
B33: 4 | C33: $51 - $100 | D33: 0.27 | E33: 0.179 | F33: 0.368 | G33: 0.171 | H33: 0.412 | I33: 0.284 | J33: 0.382 | K33: 0.291 | L33: 0.358 | M33: 0.23125 | Q33: $51 - $100 | R33: 0.38 | S33: 0.393 | T33: 0.393 | U33: 0.488 | V33: 0.34 | W33: 0.343 | X33: 0.333 | Y33: 0.292 | Z33: 0.3615 | AA33: 0.379
B34: 5 | C34: $101 - $200 | D34: 0.65 | E34: 0.572 | F34: 0.761 | G34: 0.659 | H34: 0.752 | I34: 0.627 | J34: 0.715 | K34: 0.583 | L34: 0.7195 | M34: 0.61025 | Q34: $101 - $200 | R34: 0.26 | S34: 0.429 | T34: 0.179 | U34: 0.293 | V34: 0.165 | W34: 0.239 | X34: 0.208 | Y34: 0.333 | Z34: 0.203 | AA34: 0.3235
B35: 6 | C35: More than $200 | D35: 0.91 | E35: 1.001 | F35: 0.94 | G35: 0.952 | H35: 0.917 | I35: 0.866 | J35: 0.923 | K35: 0.916 | L35: 0.9225 | M35: 0.93375 | Q35: More than $200 | R35: 0.09 | S35: 0 | T35: 0.06 | U35: 0.049 | V35: 0.082 | W35: 0.134 | X35: 0.076 | Y35: 0.083 | Z35: 0.077 | AA35: 0.0665
C36: Travel Time | Q36: Travel Time
B37: 1 | C37: Less than 5 min | D37: 0 | E37: 0 | F37: 0 | G37: 0 | H37: 0 | I37: 0 | J37: 0 | K37: 0 | L37: 0 | M37: 0 | Q37: Less than 5 min | R37: 0.25 | S37: 0.036 | T37: 0.274 | U37: 0.122 | V37: 0.289 | W37: 0.164 | X37: 0.278 | Y37: 0.042 | Z37: 0.27275 | AA37: 0.091
B38: 2 | C38: 6 to 10 min | D38: 0.25 | E38: 0.036 | F38: 0.274 | G38: 0.122 | H38: 0.289 | I38: 0.164 | J38: 0.278 | K38: 0.042 | L38: 0.27275 | M38: 0.091 | Q38: 6 to 10 min | R38: 0.34 | S38: 0.357 | T38: 0.376 | U38: 0.317 | V38: 0.418 | W38: 0.313 | X38: 0.431 | Y38: 0.417 | Z38: 0.39125 | AA38: 0.351
B39: 3 | C39: 11 to 20 min | D39: 0.59 | E39: 0.393 | F39: 0.65 | G39: 0.439 | H39: 0.707 | I39: 0.477 | J39: 0.709 | K39: 0.459 | L39: 0.664 | M39: 0.442 | Q39: 11 to 20 min | R39: 0.35 | S39: 0.25 | T39: 0.282 | U39: 0.317 | V39: 0.227 | W39: 0.343 | X39: 0.243 | Y39: 0.292 | Z39: 0.2755 | AA39: 0.3005
B40: 4 | C40: 21 to 40 min | D40: 0.94 | E40: 0.643 | F40: 0.932 | G40: 0.756 | H40: 0.934 | I40: 0.82 | J40: 0.952 | K40: 0.751 | L40: 0.9395 | M40: 0.7425 | Q40: 21 to 40 min | R40: 0.05 | S40: 0.321 | T40: 0.06 | U40: 0.22 | V40: 0.046 | W40: 0.179 | X40: 0.035 | Y40: 0.167 | Z40: 0.04775 | AA40: 0.22175
B41: 5 | C41: 41 to 60 min | D41: 0.99 | E41: 0.964 | F41: 0.992 | G41: 0.976 | H41: 0.98 | I41: 0.999 | J41: 0.987 | K41: 0.918 | L41: 0.98725 | M41: 0.96425 | Q41: 41 to 60 min | R41: 0.01 | S41: 0.036 | T41: 0 | U41: 0.024 | V41: 0.005 | W41: 0 | X41: 0.014 | Y41: 0.042 | Z41: 0.00725 | AA41: 0.0255
B42: 6 | C42: More than 1 hour | D42: 1 | E42: 1 | F42: 0.992 | G42: 1 | H42: 0.985 | I42: 0.999 | J42: 1.001 | K42: 0.96 | L42: 0.9945 | M42: 0.98975 | Q42: More than 1 hour | R42: 0 | S42: 0 | T42: 0.009 | U42: 0 | V42: 0.015 | W42: 0 | X42: 0 | Y42: 0.042 | Z42: 0.006 | AA42: 0.0105
A43: Personal Shopping Stats | C43: Dollars Spent | P43: Personal Shopping Stats | Q43: Dollars Spent
B44: 1 | C44: $0 | D44: 0 | E44: 0 | F44: 0 | G44: 0 | H44: 0 | I44: 0 | J44: 0 | K44: 0 | L44: 0 | M44: 0 | Q44: $0 | R44: 0.01 | S44: 0.036 | T44: 0.017 | U44: 0.024 | V44: 0.036 | W44: 0.03 | X44: 0.035 | Y44: 0.083 | Z44: 0.0245 | AA44: 0.04325
B45: 2 | C45: $1 - $20 | D45: 0.01 | E45: 0.036 | F45: 0.017 | G45: 0.024 | H45: 0.036 | I45: 0.03 | J45: 0.035 | K45: 0.083 | L45: 0.0245 | M45: 0.04325 | Q45: $1 - $20 | R45: 0.1 | S45: 0.214 | T45: 0.094 | U45: 0.024 | V45: 0.072 | W45: 0.119 | X45: 0.097 | Y45: 0.042 | Z45: 0.09075 | AA45: 0.09975
B46: 3 | C46: $21 - $50 | D46: 0.11 | E46: 0.25 | F46: 0.111 | G46: 0.048 | H46: 0.108 | I46: 0.149 | J46: 0.132 | K46: 0.125 | L46: 0.11525 | M46: 0.143 | Q46: $21 - $50 | R46: 0.36 | S46: 0.357 | T46: 0.385 | U46: 0.488 | V46: 0.345 | W46: 0.194 | X46: 0.229 | Y46: 0.333 | Z46: 0.32975 | AA46: 0.343
B47: 4 | C47: $51 - $100 | D47: 0.47 | E47: 0.607 | F47: 0.496 | G47: 0.536 | H47: 0.453 | I47: 0.343 | J47: 0.361 | K47: 0.458 | L47: 0.445 | M47: 0.486 | Q47: $51 - $100 | R47: 0.37 | S47: 0.214 | T47: 0.308 | U47: 0.244 | V47: 0.314 | W47: 0.358 | X47: 0.354 | Y47: 0.25 | Z47: 0.3365 | AA47: 0.2665
B48: 5 | C48: $101 - $200 | D48: 0.84 | E48: 0.821 | F48: 0.804 | G48: 0.78 | H48: 0.767 | I48: 0.701 | J48: 0.715 | K48: 0.708 | L48: 0.7815 | M48: 0.7525 | Q48: $101 - $200 | R48: 0.09 | S48: 0.071 | T48: 0.103 | U48: 0.171 | V48: 0.191 | W48: 0.254 | X48: 0.208 | Y48: 0.208 | Z48: 0.148 | AA48: 0.176
B49: 6 | C49: More than $200 | D49: 0.93 | E49: 0.892 | F49: 0.907 | G49: 0.951 | H49: 0.958 | I49: 0.955 | J49: 0.923 | K49: 0.916 | L49: 0.9295 | M49: 0.9285 | Q49: More than $200 | R49: 0.07 | S49: 0.107 | T49: 0.094 | U49: 0.049 | V49: 0.041 | W49: 0.045 | X49: 0.076 | Y49: 0.083 | Z49: 0.07025 | AA49: 0.071
C50: Travel Time | Q50: Travel Time
B51: 1 | C51: Less than 5 min | D51: 0 | E51: 0 | F51: 0 | G51: 0 | H51: 0 | I51: 0 | J51: 0 | K51: 0 | L51: 0 | M51: 0 | Q51: Less than 5 min | R51: 0.14 | S51: 0.071 | T51: 0.103 | U51: 0.122 | V51: 0.108 | W51: 0.075 | X51: 0.104 | Y51: 0.081 | Z51: 0.11375 | AA51: 0.08725
B52: 2 | C52: 6 to 10 min | D52: 0.14 | E52: 0.071 | F52: 0.103 | G52: 0.122 | H52: 0.108 | I52: 0.075 | J52: 0.104 | K52: 0.081 | L52: 0.11375 | M52: 0.08725 | Q52: 6 to 10 min | R52: 0.24 | S52: 0.179 | T52: 0.282 | U52: 0.171 | V52: 0.253 | W52: 0.224 | X52: 0.278 | Y52: 0.206 | Z52: 0.26325 | AA52: 0.195
B53: 3 | C53: 11 to 20 min | D53: 0.38 | E53: 0.25 | F53: 0.385 | G53: 0.293 | H53: 0.361 | I53: 0.299 | J53: 0.382 | K53: 0.287 | L53: 0.377 | M53: 0.28225 | Q53: 11 to 20 min | R53: 0.45 | S53: 0.286 | T53: 0.444 | U53: 0.22 | V53: 0.423 | W53: 0.299 | X53: 0.458 | Y53: 0.263 | Z53: 0.44375 | AA53: 0.267
B54: 4 | C54: 21 to 40 min | D54: 0.83 | E54: 0.536 | F54: 0.829 | G54: 0.513 | H54: 0.784 | I54: 0.598 | J54: 0.84 | K54: 0.55 | L54: 0.82075 | M54: 0.54925 | Q54: 21 to 40 min | R54: 0.15 | S54: 0.321 | T54: 0.137 | U54: 0.317 | V54: 0.165 | W54: 0.313 | X54: 0.146 | Y54: 0.325 | Z54: 0.1495 | AA54: 0.319
B55: 5 | C55: 41 to 60 min | D55: 0.98 | E55: 0.857 | F55: 0.966 | G55: 0.83 | H55: 0.949 | I55: 0.911 | J55: 0.986 | K55: 0.875 | L55: 0.97025 | M55: 0.86825 | Q55: 41 to 60 min | R55: 0.02 | S55: 0.143 | T55: 0.026 | U55: 0.098 | V55: 0.026 | W55: 0.09 | X55: 0.014 | Y55: 0.094 | Z55: 0.0215 | AA55: 0.10625
B56: 6 | C56: More than 1 hour | D56: 1 | E56: 1 | F56: 0.992 | G56: 0.928 | H56: 0.975 | I56: 1.001 | J56: 1 | K56: 0.969 | L56: 0.99175 | M56: 0.9745 | Q56: More than 1 hour | R56: 0 | S56: 0 | T56: 0.009 | U56: 0.073 | V56: 0.026 | W56: 0 | X56: 0 | Y56: 0.031 | Z56: 0.00875 | AA56: 0.026
A57: Leisure Stats | C57: Dollars Spent | P57: Leisure Stats | Q57: Dollars Spent
B58: 1 | C58: $0 | D58: 0 | E58: 0 | F58: 0 | G58: 0 | H58: 0 | I58: 0 | J58: 0 | K58: 0 | L58: 0 | M58: 0 | Q58: $0 | R58: 0.05 | S58: 0.036 | T58: 0.034 | U58: 0.024 | V58: 0.052 | W58: 0.03 | X58: 0.063 | Y58: 0.042 | Z58: 0.04975 | AA58: 0.033
B59: 2 | C59: $1 - $20 | D59: 0.05 | E59: 0.036 | F59: 0.034 | G59: 0.024 | H59: 0.052 | I59: 0.03 | J59: 0.063 | K59: 0.042 | L59: 0.04975 | M59: 0.033 | Q59: $1 - $20 | R59: 0.12 | S59: 0.107 | T59: 0.197 | U59: 0.195 | V59: 0.191 | W59: 0.179 | X59: 0.16 | Y59: 0.083 | Z59: 0.167 | AA59: 0.141
B60: 3 | C60: $21 - $50 | D60: 0.17 | E60: 0.143 | F60: 0.231 | G60: 0.219 | H60: 0.243 | I60: 0.209 | J60: 0.223 | K60: 0.125 | L60: 0.21675 | M60: 0.174 | Q60: $21 - $50 | R60: 0.44 | S60: 0.429 | T60: 0.479 | U60: 0.439 | V60: 0.448 | W60: 0.463 | X60: 0.389 | Y60: 0.542 | Z60: 0.439 | AA60: 0.46825
B61: 4 | C61: $51 - $100 | D61: 0.61 | E61: 0.572 | F61: 0.71 | G61: 0.658 | H61: 0.691 | I61: 0.672 | J61: 0.612 | K61: 0.667 | L61: 0.65575 | M61: 0.64225 | Q61: $51 - $100 | R61: 0.33 | S61: 0.357 | T61: 0.222 | U61: 0.293 | V61: 0.227 | W61: 0.254 | X61: 0.292 | Y61: 0.292 | Z61: 0.26775 | AA61: 0.299
B62: 5 | C62: $101 - $200 | D62: 0.94 | E62: 0.929 | F62: 0.932 | G62: 0.951 | H62: 0.918 | I62: 0.926 | J62: 0.904 | K62: 0.959 | L62: 0.9235 | M62: 0.94125 | Q62: $101 - $200 | R62: 0.05 | S62: 0.036 | T62: 0.068 | U62: 0.024 | V62: 0.072 | W62: 0.075 | X62: 0.063 | Y62: 0 | Z62: 0.06325 | AA62: 0.03375
B63: 6 | C63: More than $200 | D63: 0.99 | E63: 0.965 | F63: 1 | G63: 0.975 | H63: 0.99 | I63: 1.001 | J63: 0.967 | K63: 0.959 | L63: 0.98675 | M63: 0.975 | Q63: More than $200 | R63: 0.01 | S63: 0.036 | T63: 0 | U63: 0.024 | V63: 0.01 | W63: 0 | X63: 0.035 | Y63: 0.042 | Z63: 0.01375 | AA63: 0.0255
C64: Travel Time | Q64: Travel Time
B65: 1 | C65: Less than 5 min | D65: 0 | E65: 0 | F65: 0 | G65: 0 | H65: 0 | I65: 0 | J65: 0 | K65: 0 | L65: 0 | M65: 0 | Q65: Less than 5 min | R65: 0.14 | S65: 0.107 | T65: 0.094 | U65: 0.146 | V65: 0.119 | W65: 0.075 | X65: 0.125 | Y65: 0.042 | Z65: 0.1195 | AA65: 0.0925
B66: 2 | C66: 6 to 10 min | D66: 0.14 | E66: 0.107 | F66: 0.094 | G66: 0.146 | H66: 0.119 | I66: 0.075 | J66: 0.125 | K66: 0.042 | L66: 0.1195 | M66: 0.0925 | Q66: 6 to 10 min | R66: 0.25 | S66: 0.143 | T66: 0.222 | U66: 0.146 | V66: 0.211 | W66: 0.149 | X66: 0.243 | Y66: 0.125 | Z66: 0.2315 | AA66: 0.14075
B67: 3 | C67: 11 to 20 min | D67: 0.39 | E67: 0.25 | F67: 0.316 | G67: 0.292 | H67: 0.33 | I67: 0.224 | J67: 0.368 | K67: 0.167 | L67: 0.351 | M67: 0.23325 | Q67: 11 to 20 min | R67: 0.32 | S67: 0.393 | T67: 0.419 | U67: 0.171 | V67: 0.397 | W67: 0.328 | X67: 0.389 | Y67: 0.25 | Z67: 0.38125 | AA67: 0.2855
B68: 4 | C68: 21 to 40 min | D68: 0.71 | E68: 0.643 | F68: 0.735 | G68: 0.463 | H68: 0.727 | I68: 0.552 | J68: 0.757 | K68: 0.417 | L68: 0.73225 | M68: 0.51875 | Q68: 21 to 40 min | R68: 0.2 | S68: 0.25 | T68: 0.188 | U68: 0.268 | V68: 0.237 | W68: 0.328 | X68: 0.181 | Y68: 0.458 | Z68: 0.2015 | AA68: 0.326
B69: 5 | C69: 41 to 60 min | D69: 0.91 | E69: 0.893 | F69: 0.923 | G69: 0.731 | H69: 0.964 | I69: 0.88 | J69: 0.938 | K69: 0.875 | L69: 0.93375 | M69: 0.84475 | Q69: 41 to 60 min | R69: 0.07 | S69: 0.071 | T69: 0.06 | U69: 0.195 | V69: 0.021 | W69: 0.06 | X69: 0.028 | Y69: 0.083 | Z69: 0.04475 | AA69: 0.10225
B70: 6 | C70: More than 1 hour | D70: 0.98 | E70: 0.964 | F70: 0.983 | G70: 0.926 | H70: 0.985 | I70: 0.94 | J70: 0.966 | K70: 0.958 | L70: 0.9785 | M70: 0.947 | Q70: More than 1 hour | R70: 0.02 | S70: 0.036 | T70: 0.017 | U70: 0.073 | V70: 0.015 | W70: 0.06 | X70: 0.035 | Y70: 0.042 | Z70: 0.02175 | AA70: 0.05275
A71: Household Vehicles | B71: 1 | C71: 0 personal vehs | D71: 0 | E71: 0 | F71: 0 | G71: 0 | H71: 0 | I71: 0 | J71: 0 | K71: 0 | L71: 0 | M71: 0 | P71: Household Vehicles | Q71: 0 personal Veh | R71: 0.11 | S71: 0 | T71: 0.06 | U71: 0.024 | V71: 0.082 | W71: 0.03 | X71: 0.083 | Y71: 0.083 | Z71: 0.08375 | AA71: 0.03425
B72: 2 | C72: 1 personal veh | D72: 0.11 | E72: 0 | F72: 0.06 | G72: 0.024 | H72: 0.082 | I72: 0.03 | J72: 0.083 | K72: 0.083 | L72: 0.08375 | M72: 0.03425 | Q72: 1 personal veh | R72: 0.38 | S72: 0.357 | T72: 0.376 | U72: 0.195 | V72: 0.387 | W72: 0.373 | X72: 0.292 | Y72: 0.125 | Z72: 0.35875 | AA72: 0.2625
B73: 3 | C73: 2 personal vehs | D73: 0.49 | E73: 0.357 | F73: 0.436 | G73: 0.219 | H73: 0.469 | I73: 0.403 | J73: 0.375 | K73: 0.208 | L73: 0.4425 | M73: 0.29675 | Q73: 2 personal veh | R73: 0.36 | S73: 0.536 | T73: 0.342 | U73: 0.39 | V73: 0.381 | W73: 0.418 | X73: 0.375 | Y73: 0.5 | Z73: 0.3645 | AA73: 0.461
B74: 4 | C74: 3 to 5 personal vehs | D74: 0.85 | E74: 0.893 | F74: 0.778 | G74: 0.609 | H74: 0.85 | I74: 0.821 | J74: 0.75 | K74: 0.708 | L74: 0.807 | M74: 0.75775 | Q74: 3 to 5 vehs | R74: 0.15 | S74: 0.107 | T74: 0.222 | U74: 0.366 | V74: 0.149 | W74: 0.179 | X74: 0.25 | Y74: 0.25 | Z74: 0.19275 | AA74: 0.2255
B75: 5 | C75: 6 or more personal vehs | D75: 1 | E75: 1 | F75: 1 | G75: 0.975 | H75: 0.999 | I75: 1 | J75: 1 | K75: 0.958 | L75: 0.99975 | M75: 0.98325 | Q75: 6 or more vehs | R75: 0 | S75: 0 | T75: 0 | U75: 0.024 | V75: 0 | W75: 0 | X75: 0 | Y75: 0.042 | Z75: 0 | AA75: 0.0165

Sheet Crash Costs
B1: Automatically populates with information from the "Workzone Characterstics" tab.
H2: Probable Crash Severity: | I2: =IF(C62 < 2.739, "PDO",IF(C62<3.214,"Class C",IF(C62 < 3.699, "Class B", IF(C62 < 4.223, "Class A", "Fatal")))) -> PDO
B5: Crash Characteristics
B6: Weather | E6: Accident Type | H6: Day of Week
B7: Clear | C7: 0 | E7: Ran off Road | F7: 0 | H7: Sunday | I7: 0
B8: Cloudy | C8: 0 | E8: Struck Object | F8: 0 | H8: Monday | I8: =IF('WorkZone Characteristics'!$L$16 = "Monday",1,0) -> 0
B9: Rain | C9: =IF('WorkZone Characteristics'!G23="Rain",1,0) -> 0 | E9: Rear End | F9: 1 | H9: Tuesday | I9: =IF('WorkZone Characteristics'!$L$16 = "Tuesday",1,0) -> 1
B10: Snow | C10: =IF('WorkZone Characteristics'!G23="Snow",1,0) -> 0 | E10: Sideswipe | F10: 0 | H10: Wednesday | I10: =IF('WorkZone Characteristics'!$L$16 = "Wednesday", 1,0) -> 0
B11: Other | C11: 0 | E11: Angle | F11: 0 | H11: Thursday | I11: =IF('WorkZone Characteristics'!$L$16="Thursday",1,0) -> 0
B12: Census Region | E12: Other | F12: 0 | H12: Friday | I12: =IF('WorkZone Characteristics'!$L$16 = "Friday",1,0) -> 0
B13: Midwest | C13: =IF('WorkZone Characteristics'!G17 = "Midwest",1,0) -> 1 | E13: Driver Age | H13: Saturday | I13: 0
B14: Northeast | C14: 0 | E14: Under 25 | F14: 0
B15: South | C15: 0 | E15: 25 to 34 | F15: 0
B16: West | C16: =IF('WorkZone Characteristics'!G18 = "West",1,0) -> 0 | E16: 35 to 44 | F16: 1
B17: Season | E17: 45 to 54 | F17: 0
B18: Spring | C18: 0 | E18: 55 to 64 | F18: 0
B19: Summer | C19: =IF(OR('WorkZone Characteristics'!L15 = "May", 'WorkZone Characteristics'!L15 = "June", 'WorkZone Characteristics'!L15 = "July"),1,0) -> 1 | E19: Over 64 | F19: 0
B20: Fall | C20: =IF(OR('WorkZone Characteristics'!L15 = "August", 'WorkZone Characteristics'!L15 = "September", 'WorkZone Characteristics'!L15 = "October"),1,0) -> 0 | E20: Surrounding Locale
B21: Winter | C21: 0 | E21: Rural | F21: =IF('WorkZone Characteristics'!G18 = "Rural", 1,0) -> 0
E22: Urban | F22: 0
B24: Road Characteristics
B25: Lighting | E25: Roadway Classification | H25: Lane Width
B26: Daylight | C26: =IF(AND('Reference Tables'!M135 > 6, 'Reference Tables'!M135 < 16), 1,0) -> 0 | E26: Urban Freeway | F26: =IF(AND(OR('WorkZone Characteristics'!G18 = "Urban",'WorkZone Characteristics'!G18 = "Suburban"), 'WorkZone Characteristics'!$G$9 = "Freeway (Interstate)"),1,0) -> 0 | H26: 1 to 11 Feet | I26: =IF('WorkZone Characteristics'!L11="1 to 11 Feet",1,0) -> 0
B27: Dusk | C27: =IF(AND('Reference Tables'!M135 > 16, 'Reference Tables'!M135 < 18), 1,0) -> 0 | E27: Urban Freeway Less than 4 Lanes | F27: =IF(AND(OR('WorkZone Characteristics'!G18 = "Urban",'WorkZone Characteristics'!G18 = "Suburban"), 'WorkZone Characteristics'!$G$9 = "Freeway Less Than 4 Lanes"),1,0) -> 0 | H27: 12 to 20 Feet | I27: =IF('WorkZone Characteristics'!L11 = "12 to 20 Feet",1,0) -> 1
B28: Dawn | C28: 0 | E28: Urban 2 Lane Road | F28: 0 | H28: 21 to 30 Feet | I28: 0
B29: Dark - Lighted Roadway | C29: =IF(AND('WorkZone Characteristics'!L12 = "Yes",OR(AND('Reference Tables'!M135 > 0, 'Reference Tables'!M135 < 6),AND('Reference Tables'!M135 > 18, 'Reference Tables'!M135 < 24),AND('Reference Tables'!M135 > 0, 'Reference Tables'!M135 < 6),AND('Reference Tables'!M135 > 18, 'Reference Tables'!M135 < 24))), 1,0) -> 0 | E29: Urban Multilane Divided Non-Freeway | F29: 0 | H29: Greater than 30 Feet | I29: 0
B30: Dark - Roadway Not Lighted | C30: =IF(AND('WorkZone Characteristics'!L12 = "No",OR(AND('Reference Tables'!M135 > 0, 'Reference Tables'!M135 < 6),AND('Reference Tables'!M135 > 18, 'Reference Tables'!M135 < 24),AND('Reference Tables'!M135 > 0, 'Reference Tables'!M135 < 6),AND('Reference Tables'!M135 > 18, 'Reference Tables'!M135 < 24))), 1,0) -> 0 | E30: Urban Multilane Undivided Non-Freeway | F30: 0 | H30: Roadway Surface Type
B31: Road Condition | E31: Rural Freeway | F31: =IF(AND('WorkZone Characteristics'!G18 = "Rural", 'WorkZone Characteristics'!$G$9 = "Freeway (Interstate)"),1,0) -> 0 | H31: Asphalt Concrete | I31: =IF('WorkZone Characteristics'!L19="Asphalt Concrete",1,0) -> 1
B32: Dry | C32: 0 | E32: Rural Freeways Less Than 4 Lanes | F32: 0 | H32: Portland Cement Concrete | I32: 0
B33: Wet | C33: =IF('WorkZone Characteristics'!G23="Rain", 1,0) -> 0 | E33: Rural 2 Lane Roads | F33: =IF(AND('WorkZone Characteristics'!G18 = "Rural",OR('WorkZone Characteristics'!$G$9 = "Two Lane Road (Arterial)", 'WorkZone Characteristics'!$G$9 = "Two Lane Road (Collector)")),1,0) -> 0 | H33: Other | I33: =IF('WorkZone Characteristics'!L19 = "Other", 1,0) -> 0
B34: Ice/Snow | C34: 0 | E34: Rural Multilane Divided Non-Freeway | F34: 0
B35: Raodway Access | E35: Rural Multilane Undivided Non-Freeway | F35: 0
B36: No Access Control | C36: =IF('WorkZone Characteristics'!$G$10="No Control",1,0) -> 1 | E36: Other | F36: =IF('WorkZone Characteristics'!$G$9 = "Other",1,0) -> 0
B37: Partial Control | C37: =IF('WorkZone Characteristics'!$G$10="Partial Control",1,0) -> 0
B38: Full Control | C38: =IF('WorkZone Characteristics'!$G$10 = "Full Control", 1,0) -> 0
B40: Continous Variables
B41: AADT | C41: ='WorkZone Characteristics'!$G$7 -> 7200 | D41: vehicles
B42: Speed Limit | C42: ='WorkZone Characteristics'!$L$9 -> 25 | D42: mph
B47: weather | C47: =IF('WorkZone Characteristics'!G23="Rain",-0.333,IF('WorkZone Characteristics'!G23="Snow",-0.548,0)) -> 0
B48: region | C48: =IF('WorkZone Characteristics'!G17 = "Midwest",0.288,IF('WorkZone Characteristics'!G18 = "West",1.525,0)) -> 0.288
B49: season | C49: =IF(C19 = 1,-0.048,IF(C20 = 1, -0.059,0)) -> -0.048
B50: time of week | C50: =IF('WorkZone Characteristics'!$L$16 = "Monday",-0.134,IF('WorkZone Characteristics'!$L$16 = "Tuesday",-0.134,IF('WorkZone Characteristics'!$L$16 = "Wednesday", -0.134,IF('WorkZone Characteristics'!$L$16="Thursday",-0.134,IF('WorkZone Characteristics'!$L$16 = "Friday",-0.134,0))))) -> -0.134
B51: accident type | C51: 0.214
B52: driver age | C52: =IF(F19 = "y",-0.057,0) -> 0
B53: rural/urban | C53: =IF('WorkZone Characteristics'!G18 = "Rural", 0.24,0) -> 0
B54: lighting | C54: =IF(C26=1,0.318,IF(C27=1,0.417,IF(C29 = 1, 0.251,IF(C30=1, 0.341,0)))) -> 0
B55: road condition | C55: =IF('WorkZone Characteristics'!G23="Rain", -0.144,0) -> 0
B56: roadway access | C56: =IF('WorkZone Characteristics'!$G$10="No Control",0.194,IF('WorkZone Characteristics'!$G$10="Partial Control",-0.855,IF('WorkZone Characteristics'!$G$10 = "Full Control", -0.631,0))) -> 0.194
B57: road classification | C57: =IF(F26=1,-0.546,IF(F27=1,-0.733,IF(F31=1,-0.668,IF(F33=1,-0.313,IF(F36=1,-0.311,0))))) -> 0
B58: lane width | C58: =IF('WorkZone Characteristics'!L11="1 to 11 Feet",-0.432,IF('WorkZone Characteristics'!L11 = "12 to 20 Feet",-0.503,0)) -> -0.503
B59: surface | C59: =IF('WorkZone Characteristics'!L19="Asphalt Concrete",-0.188,IF('WorkZone Characteristics'!L19 = "Other", -0.185,0)) -> -0.188
B60: aadt | C60: ='WorkZone Characteristics'!$G$7*(0.0000028) -> 0.02016
B61: speed | C61: ='WorkZone Characteristics'!$L$9*0.051 -> 1.275
B62: total | C62: =SUM(C47:C61) -> 1.11816

Sheet Reference Tables
A1: Value Of Time Tables
B3: Mode and Trip Purpose | C3: Recommended Value of Time | F3: Industry | G3: AvG Hourly Earnings ($/hr) | H3: AvG Hourly Compensation ($/hr) | T3: INPUT LEGEND
B4: AUTO | F4: All Employees (Private) | G4: 25.81 | H4: 30.46 | T4: Roadway Type
B5: Personal (local) | C5: 0.5 | D5: Wage | F5: Construction | G5: 28.33 | T5: Freeway (Interstate) | X5: 1
B6: Personal (intercity) | C6: 0.7 | D6: Wage | F6: Manufacturing | G6: 26.16 | T6: Freeway Less Than 4 Lanes | X6: 2
B7: Business | C7: 1 | D7: Compensation | F7: Transportation and Warehousing | G7: 23.41 | H7: 28.1 | T7: Two Lane Road (Arterial) | X7: 3
B8: Freight | F8: Utilities | G8: 38.35 | H8: 46.39 | K8: Travel Purpose | L8: Value of Time | T8: Two Lane Road (Collector) | X8: 4
B9: In-Vehicle Business | C9: 1 | D9: Compensation | F9: Information | G9: 36.98 | L9: Personal Vehicles | M9: Freight Vehicles | T9: Mutilane Divided Non-Freeway | X9: 5
B10: Excess (Waiting Time) Business | C10: 1 | D10: Compensation | F10: Professional and Business Services | G10: 30.97 | K10: General Personal (local) | L10: 12.91 | T10: Mutilane Undivided Non-Freeway | X10: 6
B11: AASHTO/FHWA Recommended Values of Time | F11: Education and Health Services | G11: 25.87 | K11: General Personal (Intercity) | L11: 18.07 | T11: Other | X11: 7
F12: Leisure and Hospitality | G12: 15.01 | K12: General Work/Business | L12: 30.97 | M12: 30.46
F13: Average Earnings/Compensation by Industry as of September 2016 BLS Estimates | K13: Transport & Warehousing | M13: 28.1 | T13: Roadway Access Type
K14: Utilities | M14: 46.39 | T14: No Control | X14: 1
B15: Census Region | C15: Average Vehicle Occupancy | D15: Margin of Error | K15: Sample Values of Time for Different Sectors | T15: Partial Control | X15: 2
B16: U.S. Overall | C16: 1.07 | D16: 0.01 | T16: Full Control | X16: 3
B17: Northeast | C17: 1.06 | D17: 0.01
B18: Midwest | C18: 1.06 | D18: 0.01 | T18: Region | V18: Locale | X18: Month | Z18: Day | AB18: Hour
B19: South | C19: 1.14 | D19: 0.02 | T19: Northeast | V19: Urban | X19: January | Z19: Sunday | AB19: 00:00:00 | AC19: 0
B20: West | C20: 1.08 | D20: 0.01 | T20: Midwest | V20: Rural | X20: February | Z20: Monday | AB20: 01:00:00 | AC20: 1
B21: American Community Survey 2006 - 2010 Five-Year Estimates for Average Vehicle Occupancy | T21: South | V21: Suburban | X21: March | Z21: Tuesday | AB21: 02:00:00 | AC21: 2
T22: West | X22: April | Z22: Wednesday | AB22: 03:00:00 | AC22: 3
A23: Operating Cost Tables | X23: May | Z23: Thursday | AB23: 04:00:00 | AC23: 4
T24: Yes | X24: June | Z24: Friday | AB24: 05:00:00 | AC24: 5
B25: Free Flow Speed | C25: Small Car (gal/min) | D25: Big Car (gal/min) | E25: SUV (gal/min) | F25: 2-Axle SU (gal/min) | G25: 3-Axle SU (gal/min) | H25: Combo (gal/min) | K25: Traffic Speed | L25: Personal Vehicle (Gasoline Only) | M25: Freight (Diesel Only) | T25: No | X25: July | Z25: Saturday | AB25: 06:00:00 | AC25: 6
B26: 20 | C26: 0.011 | D26: 0.022 | E26: 0.023 | F26: 0.074 | G26: 0.102 | H26: 0.198 | M26: Single Unit | N26: Combination | X26: August | AB26: 07:00:00 | AC26: 7
B27: 25 | C27: 0.013 | D27: 0.026 | E27: 0.027 | F27: 0.097 | G27: 0.133 | H27: 0.242 | K27: 25 | L27: 1.2 | M27: 5.82 | N27: 14.52 | X27: September | AB27: 08:00:00 | AC27: 8
B28: 30 | C28: 0.015 | D28: 0.03 | E28: 0.032 | F28: 0.122 | G28: 0.167 | H28: 0.284 | K28: 35 | L28: 1.65 | M28: 8.94 | N28: 19.62 | X28: October | AB28: 09:00:00 | AC28: 9
B29: 35 | C29: 0.018 | D29: 0.034 | E29: 0.037 | F29: 0.149 | G29: 0.203 | H29: 0.327 | K29: 45 | L29: 2.22 | M29: 12.36 | N29: 24.66 | X29: November | AB29: 10:00:00 | AC29: 10
B30: 40 | C30: 0.021 | D30: 0.038 | E30: 0.043 | F30: 0.177 | G30: 0.241 | H30: 0.369 | K30: 55 | L30: 2.91 | M30: 15.96 | N30: 29.7 | X30: December | AB30: 11:00:00 | AC30: 11
B31: 45 | C31: 0.025 | D31: 0.043 | E31: 0.049 | F31: 0.206 | G31: 0.28 | H31: 0.411 | K31: 65 | L31: 3.75 | M31: 19.68 | N31: 34.68 | AB31: 12:00:00 | AC31: 12
B32: 50 | C32: 0.028 | D32: 0.048 | E32: 0.057 | F32: 0.235 | G32: 0.321 | H32: 0.453 | K32: 75 | L32: 4.74 | M32: 23.52 | N32: 39.66 | T32: Business Type | AB32: 13:00:00 | AC32: 13
B33: 55 | C33: 0.032 | D33: 0.054 | E33: 0.065 | F33: 0.266 | G33: 0.362 | H33: 0.495 | K33: Simplified Fuel Consumption Table (in gallons/minute of delay) | T33: Grocery | AB33: 14:00:00 | AC33: 14
B34: 60 | C34: 0.037 | D34: 0.06 | E34: 0.073 | F34: 0.297 | G34: 0.404 | H34: 0.537 | T34: Personal | AB34: 15:00:00 | AC34: 15
B35: 65 | C35: 0.042 | D35: 0.066 | E35: 0.083 | F35: 0.328 | G35: 0.447 | H35: 0.578 | T35: Leisure | AB35: 16:00:00 | AC35: 16
B36: 70 | C36: 0.047 | D36: 0.073 | E36: 0.094 | F36: 0.36 | G36: 0.49 | H36: 0.62 | AB36: 17:00:00 | AC36: 17
B37: 75 | C37: 0.053 | D37: 0.08 | E37: 0.105 | F37: 0.392 | G37: 0.534 | H37: 0.661 | AB37: 18:00:00 | AC37: 18
B38: Fuel Consumption (Gallons) per Minute of Delay by Vehicle Type | AB38: 19:00:00 | AC38: 19
AB39: 20:00:00 | AC39: 20
AB40: 21:00:00 | AC40: 21
A41: Time Modifier Tables | AB41: 22:00:00 | AC41: 22
AB42: 23:00:00 | AC42: 23
B43: Road Classification | C43: Jan | D43: Feb | E43: March | F43: April | G43: May | H43: June | I43: July | J43: Aug | K43: Sept | L43: Oct | M43: Nov | N43: Dec
B44: Rural/Small Urban Interstate | C44: 1.18 | D44: 1.08 | E44: 0.97 | F44: 0.95 | G44: 1.01 | H44: 0.95 | I44: 0.91 | J44: 0.94 | K44: 1.06 | L44: 1.04 | M44: 1 | N44: 0.96
B45: Rural Arterial | C45: 1.14 | D45: 1.08 | E45: 1.02 | F45: 0.98 | G45: 0.97 | H45: 0.96 | I45: 0.97 | J45: 0.98 | K45: 0.98 | L45: 0.94 | M45: 0.97 | N45: 1.04
B46: Rural Collector | C46: 1.2 | D46: 1.05 | E46: 1 | F46: 0.95 | G46: 0.95 | H46: 0.98 | I46: 0.97 | J46: 0.95 | K46: 0.98 | L46: 0.94 | M46: 1.03 | N46: 1.05
B47: Urbanized Interstate | C47: 1.11 | D47: 1.05 | E47: 0.99 | F47: 0.99 | G47: 0.99 | H47: 0.94 | I47: 0.97 | J47: 0.95 | K47: 1.01 | L47: 1 | M47: 1.01 | N47: 1.03
B48: Urbanized Arterial | C48: 1.06 | D48: 1.01 | E48: 0.99 | F48: 1.01 | G48: 0.96 | H48: 0.99 | I48: 1.02 | J48: 1 | K48: 0.99 | L48: 0.96 | M48: 1 | N48: 1.03
B49: Urbanized Collector | C49: 1.05 | D49: 0.99 | E49: 0.95 | F49: 0.95 | G49: 0.96 | H49: 1 | I49: 1.01 | J49: 1.04 | K49: 1.03 | L49: 0.92 | M49: 1.06 | N49: 1.08
B50: Georgia Department of Transportation Monthly ADT Factors
B52: Road Classification | C52: Sun | D52: Mon | E52: Tues | F52: Wed | G52: Thurs | H52: Fri | I52: Sat
B53: Rural/Small Urban Interstate | C53: 0.99 | D53: 1.07 | E53: 1.12 | F53: 1.08 | G53: 1.02 | H53: 0.85 | I53: 0.93
B54: Rural Arterial | C54: 1.29 | D54: 0.99 | E54: 0.99 | F54: 0.98 | G54: 0.95 | H54: 0.85 | I54: 1.04
B55: Rural Collector | C55: 1.14 | D55: 1.04 | E55: 1.05 | F55: 1.04 | G55: 1.01 | H55: 0.87 | I55: 0.99
B56: Urbanized Interstate | C56: 1.39 | D56: 0.98 | E56: 0.94 | F56: 0.92 | G56: 0.91 | H56: 0.86 | I56: 1.18
B57: Urbanized Arterial | C57: 1.55 | D57: 0.94 | E57: 0.92 | F57: 0.92 | G57: 0.92 | H57: 0.84 | I57: 1.17
B58: Urbanized Collector | C58: 1.57 | D58: 0.95 | E58: 0.94 | F58: 0.93 | G58: 0.88 | H58: 0.84 | I58: 1.18
B59: Georgia Department of Transportation Daily ADT Factors
B61: Time | C61: Urban (% oF ADT) | D61: Rural (% of ADT)
B62: 0000 – 0059 | C62: 1.2 | D62: 1.8
B63: 0100 – 0159 | C63: 0.8 | D63: 1.5
B64: 0200 – 0259 | C64: 0.7 | D64: 1.3
B65: 0300 – 0359 | C65: 0.5 | D65: 1.3
B66: 0400 – 0459 | C66: 0.7 | D66: 1.5
B67: 0500 – 0559 | C67: 1.7 | D67: 1.8
B68: 0600 – 0659 | C68: 5.1 | D68: 2.5
B69: 0700 – 0759 | C69: 7.8 | D69: 3.5
B70: 0800 – 0859 | C70: 6.3 | D70: 4.2
B71: 0900 – 0959 | C71: 5.2 | D71: 5
B72: 1000 – 1059 | C72: 4.7 | D72: 5.4
B73: 1100 – 1159 | C73: 5.3 | D73: 5.6
B74: 1200 – 1259 | C74: 5.6 | D74: 5.7
B75: 1300 – 1359 | C75: 5.7 | D75: 6.4
B76: 1400 – 1459 | C76: 5.9 | D76: 6.8
B77: 1500 – 1559 | C77: 6.5 | D77: 7.3
B78: 1600 – 1659 | C78: 7.9 | D78: 9.3
B79: 1700 – 1759 | C79: 8.5 | D79: 7
B80: 1800 – 1859 | C80: 5.9 | D80: 5.5
B81: 1900 – 1959 | C81: 3.9 | D81: 4.7
B82: 2000 – 2059 | C82: 3.3 | D82: 3.8
B83: 2100 – 2159 | C83: 2.8 | D83: 3.2
B84: 2200 – 2259 | C84: 2.3 | D84: 2.6
B85: 2300 – 2359 | C85: 1.7 | D85: 2.3
B86: Distributions of Daily Traffic According to FHWA MicroBENCOST
A100: Emission Cost Tables
B102: Speed | C102: Auto (Gasoline Only) | G102: Truck (Diesel Only) | L102: Pollutant | M102: Damage Cost ($/ton) | N102: Urban Adjustment | O102: Rural Adjustment
C103: CO (g/mile) | D103: VOC (g/mile) | E103: NOx (g/mile) | F103: PM2.5 (g/mile) | G103: CO (g/mile) | H103: VOC (g/mile) | I103: NOx (g/mile) | J103: PM2.5 (g/mile) | L103: CO | M103: 150 | N103: 1 | O103: 0.5
B104: 5 | C104: 1.987134089 | D104: 0.1512943231 | E104: 0.1753151442 | F104: 0.01081757294 | G104: 5.095995987 | H104: 1.678721644 | I104: 16.8979015 | J104: 0.1911748643 | L104: VOC | M104: 3900 | N104: 1.5 | O104: 1
B105: 10 | C105: 1.658815457 | D105: 0.09091637376 | E105: 0.1398085501 | F105: 0.00682190271 | G105: 3.95126189 | H105: 1.311382609 | I105: 13.88376937 | J105: 0.1681770066 | L105: NOx | M105: 5100 | N105: 1.5 | O105: 1
B106: 15 | C106: 1.487828316 | D106: 0.06210811863 | E106: 0.1230560903 | F106: 0.00457503231 | G106: 2.396486131 | H106: 0.7808929805 | I106: 9.76051031 | J106: 0.1243851362 | L106: SO2 | M106: 11800 | N106: 1.5 | O106: 1
B107: 20 | C107: 1.334714767 | D107: 0.0445555862 | E107: 0.1098921451 | F107: 0.003233266622 | G107: 1.596051735 | H107: 0.4589897289 | I107: 7.342591964 | J107: 0.104143551 | L107: PM2.5 | M107: 6800 | N107: 1 | O107: 0.5
B108: 25 | C108: 1.18939447 | D108: 0.03280164806 | E108: 0.09855640431 | F108: 0.002379080608 | G108: 1.212324116 | H108: 0.3251729308 | I108: 5.889954723 | J108: 0.07662020475 | L108: Road Dust | M108: 6800 | N108: 1 | O108: 0.5
B109: 30 | C109: 1.077240118 | D109: 0.0253363721 | E109: 0.09115620257 | F109: 0.001853635204 | G109: 0.9426951783 | H109: 0.2533870795 | I109: 5.157845861 | J109: 0.06946188192 | L109: HERS-ST Estimates of Air Pollutant Costs in 2016 Dollars
B110: 35 | C110: 1.007312165 | D110: 0.02168916204 | E110: 0.0881954315 | F110: 0.001525782984 | G110: 0.7734886736 | H110: 0.1985186028 | I110: 4.713359111 | J110: 0.06575793928
B111: 40 | C111: 0.9526725187 | D111: 0.01942713625 | E111: 0.08674721549 | F111: 0.001329622212 | G111: 0.62279491 | H111: 0.1588317121 | I111: 4.363623002 | J111: 0.06471724861
B112: 45 | C112: 0.8966677359 | D112: 0.01812972917 | E112: 0.08589723612 | F112: 0.001217206799 | G112: 0.5129343589 | H112: 0.1297243205 | I112: 4.077441057 | J112: 0.0662690378
B113: 50 | C113: 0.8575859795 | D113: 0.01794626857 | E113: 0.08683675438 | F113: 0.001181840615 | G113: 0.4414324849 | H113: 0.111478522 | I113: 3.884997706 | J113: 0.07140210205
B114: 55 | C114: 0.8190787164 | D114: 0.01850729194 | E114: 0.08919384395 | F114: 0.001200179612 | G114: 0.3981484221 | H114: 0.1017755659 | I114: 3.791464034 | J114: 0.07933686857
B115: 60 | C115: 0.7495060844 | D115: 0.01831372572 | E115: 0.08660931779 | F115: 0.001280649475 | G115: 0.3782725201 | H115: 0.09790025141 | I115: 3.765511518 | J115: 0.08299544648
B116: 65 | C116: 0.7378883937 | D116: 0.02191162081 | E116: 0.09461153498 | F116: 0.001417850889 | G116: 0.3743074568 | H116: 0.09512476677 | I116: 3.607491396 | J116: 0.08201312353
B117: 70 | C117: 0.7520717064 | D117: 0.02248957153 | E117: 0.09378980614 | F117: 0.001540149524 | G117: 0.3622357155 | H117: 0.09163393692 | I117: 3.350109407 | J117: 0.0795235799
B118: Aggregated Emission Rates from EMFAC Model
B120: Traffic Speed | C120: Personal Vehicle (Gasoline Only) | E120: Freight (Diesel Only)
C121: Urban ($/mile) | D121: Rural ($/mile) | E121: Urban ($/mile) | F121: Rural ($/mile)
B122: 5 | C122: 0.0028604 | D122: 0.0018385 | E122: 0.1555966 | F122: 0.103352
B123: 15 | C123: 0.0017205 | D123: 0.0010998 | E123: 0.0886732 | F123: 0.0588945
B124: 25 | C124: 0.0012592 | D124: 0.0008042 | E124: 0.0525418 | F124: 0.0348983
B125: 35 | C125: 0.0010654 | D125: 0.00068 | E125: 0.041649 | F125: 0.0276622
B126: 45 | C126: 0.0009971 | D126: 0.0006388 | E126: 0.0357978 | F126: 0.0237686
B127: 55 | C127: 0.0010159 | D127: 0.0006535 | E127: 0.033284 | F127: 0.0220797
B128: 65 | C128: 0.0010725 | D128: 0.0006934 | E128: 0.0317057 | F128: 0.0210244
B129: Emission Costs per Mile at Common Traffic Speeds
I132: USD per Vehicle
D133: Value of Time | E133: Occupants | F133: Delay (hr) | L133: Project Hours Duration | M133: =IF(M136>M135,M136-M135,24-M135+M136) -> 11
B134: LTC | C134: Personal | D134: =IF('WorkZone Characteristics'!G19 = 0, 12.91, VLOOKUP('WorkZone Characteristics'!G19,'Reference Tables'!K10:L12,2)) -> 18.07 | E134: =IF('WorkZone Characteristics'!G17 = 0, 1.07,VLOOKUP('WorkZone Characteristics'!G17,'Reference Tables'!$B$17:$C$20,2)) -> 1.06 | F134: ='WorkZone Characteristics'!$L$14/60 -> 0.5 | I134: =D134*E134*F134 -> 9.5771
C135: Trucks | D135: =IF('WorkZone Characteristics'!G20 = 0, 28.1, VLOOKUP('WorkZone Characteristics'!G20,'Reference Tables'!K12:M14,3)) -> 30.46 | E135: 1 | F135: ='WorkZone Characteristics'!$L$14/60 -> 0.5 | I135: =D135*E135*F135 -> 15.23 | L135: Starting Time of Road Closure | M135: =VLOOKUP('WorkZone Characteristics'!L17,'Reference Tables'!AB19:AC42,2) -> 6
L136: Ending Time of Road Closure | M136: =VLOOKUP('WorkZone Characteristics'!L18,'Reference Tables'!AB19:AC42,2) -> 17
D137: Fuel Consumption | E137: Delay (hr) | F137: Fuel Price | G137: OwnC | H137: Length of Workzone
B138: OC | C138: Personal | D138: =IF('WorkZone Characteristics'!$L$9 = 0, 0,VLOOKUP('WorkZone Characteristics'!$L$9,'Reference Tables'!$K$27:$M$32,2)) -> 1.2 | E138: ='WorkZone Characteristics'!$L$14/60 -> 0.5 | F138: ='WorkZone Characteristics'!G21 -> 3.2 | G138: 2.18 | H138: ='WorkZone Characteristics'!$L$10 -> 2 | I138: =D138*E138*F138+G138*H138 -> 6.28
C139: Trucks | D139: =IF('WorkZone Characteristics'!$L$9 = 0, 0,VLOOKUP('WorkZone Characteristics'!$L$9,'Reference Tables'!$K$27:$M$32,3)) -> 5.82 | E139: ='WorkZone Characteristics'!$L$14/60 -> 0.5 | F139: ='WorkZone Characteristics'!G22 -> 3.2 | H139: ='WorkZone Characteristics'!$L$10 -> 2 | I139: =D139*E139*F139+0.2*E139 -> 9.412
D141: Emission Factor | E141: Length of Workzone
B142: EC Before | C142: Personal | D142: =IF('WorkZone Characteristics'!L8 = 0,0,IF(OR('WorkZone Characteristics'!G18="Urban",'WorkZone Characteristics'!G18="Suburban"),VLOOKUP('WorkZone Characteristics'!$L$8,'Reference Tables'!$B$122:$F$128,2),VLOOKUP('WorkZone Characteristics'!$L$8,'Reference Tables'!$B$122:$F$128,3))) -> 0.0010725 | E142: ='WorkZone Characteristics'!$L$10 -> 2 | I142: =D142*E142 -> 0.002145
C143: Trucks | D143: =IF('WorkZone Characteristics'!L8 = 0,0,IF(OR('WorkZone Characteristics'!G18="Urban",'WorkZone Characteristics'!G18="Suburban"),VLOOKUP('WorkZone Characteristics'!$L$8,'Reference Tables'!$B$122:$F$128,4),VLOOKUP('WorkZone Characteristics'!$L$8,'Reference Tables'!$B$122:$F$128,5))) -> 0.0317057 | E143: ='WorkZone Characteristics'!$L$10 -> 2 | I143: =D143*E143 -> 0.0634114
B144: EC After | C144: Personal | D144: =IF('WorkZone Characteristics'!L9 = 0,0,IF(OR('WorkZone Characteristics'!G18="Urban",'WorkZone Characteristics'!G18="Suburban"),VLOOKUP('WorkZone Characteristics'!$L$9,'Reference Tables'!$B$122:$F$128,2),VLOOKUP('WorkZone Characteristics'!$L$9,'Reference Tables'!$B$122:$F$128,3))) -> 0.0012592 | E144: ='WorkZone Characteristics'!$L$10 -> 2 | I144: =D144*E144 -> 0.0025184
C145: Trucks | D145: =IF('WorkZone Characteristics'!L9 = 0,0,IF(OR('WorkZone Characteristics'!G18="Urban",'WorkZone Characteristics'!G18="Suburban"),VLOOKUP('WorkZone Characteristics'!$L$9,'Reference Tables'!$B$122:$F$128,4),VLOOKUP('WorkZone Characteristics'!$L$9,'Reference Tables'!$B$122:$F$128,5))) -> 0.0525418 | E145: ='WorkZone Characteristics'!$L$10 -> 2 | I145: =D145*E145 -> 0.1050836
G148: TOTALS | H148: Personal Vehicles | I148: =I134+I138+(I144-I142) -> 15.8574734
H149: Freight | I149: =I135+I139+(I145-I143) -> 24.6836722
